Workbook

Sheet Clean Sheet
A1: Hunter Trials Scoresheet | K1: Date: | P1: Class: | S1: Height Cm: | V1: Min | X1: Speed Mpm | AA1: =(IF(Height=80,435,IF(Height=90,450,IF(Height=100,475,250)))) -> 250 | AB1: Timed Dist (mtr) | AC1: 529 | AD1: T/S Optimum: | AG1: =TIME(INT((Distance*60/Speed)/3600),INT(MOD((Distance*60/Speed),3600)/60),MOD(MOD((Distance*60/Speed),3600),60)) -> 00:02:06
A2: No. | B2: 1 | C2: 2 | D2: 3 | E2: 4 | F2: 5 | G2: 6 | H2: 7 | I2: 8 | J2: 9 | K2: 10 | L2: 11 | M2: 12 | N2: 13 | O2: 14 | P2: 15 | Q2: 16 | R2: 17 | S2: 18 | T2: 19 | U2: 20 | V2: 21 | W2: 22 | X2: 23 | Y2: 24 | Z2: 25 | AA2: Timed Section | AE2: Jump Total | AF2: Total Penalties | AG2: Position
AA3: Start | AB3: End | AC3: Elapsed | AD3: Variance
B4: 0 | C4: 0 | D4: 0 | E4: 0 | F4: 0 | G4: 0 | H4: 0 | I4: 0 | J4: 0 | K4: 0 | L4: 0 | M4: 0 | N4: 0 | O4: 0 | P4: 0 | Q4: 20 | AA4: 0 | AB4: 00:02:10 | AC4: =IF(AA4="","",AB4-AA4) -> 00:02:10 | AD4: =IF(AC4="","",ABS(AC4-BogeyTime)) -> 4.62962963e-05 | AE4: =IF(COUNTIF(B4:Z4,"e")>0,"E",(IF(AA4="","",SUM(B4:Z4)))) -> 20 | AF4: =IF(OR(AA4="",AE4="E"),99999,(IF(AC4<BogeyTime,AD4*86401,AD4*86400)+AE4*100)) -> 2004 | AG4: =IF(AF4=99999,"",RANK(AF4,Top:Bottom,1)) -> 1
AF5: 99999 | AG5: =IF(AF5=99999,"",RANK(AF5,Top:Bottom,1)) -> 
AF6: 99999 | AG6: =IF(AF6=99999,"",RANK(AF6,Top:Bottom,1)) -> 
AF7: 99999 | AG7: =IF(AF7=99999,"",RANK(AF7,Top:Bottom,1)) -> 
AF8: 99999 | AG8: =IF(AF8=99999,"",RANK(AF8,Top:Bottom,1)) -> 
AF9: 99999 | AG9: =IF(AF9=99999,"",RANK(AF9,Top:Bottom,1)) -> 
AF10: 99999 | AG10: =IF(AF10=99999,"",RANK(AF10,Top:Bottom,1)) -> 
AF11: 99999 | AG11: =IF(AF11=99999,"",RANK(AF11,Top:Bottom,1)) -> 
AF12: 99999 | AG12: =IF(AF12=99999,"",RANK(AF12,Top:Bottom,1)) -> 
AF13: 99999 | AG13: =IF(AF13=99999,"",RANK(AF13,Top:Bottom,1)) -> 
AF14: 99999 | AG14: =IF(AF14=99999,"",RANK(AF14,Top:Bottom,1)) -> 
AF15: 99999 | AG15: =IF(AF15=99999,"",RANK(AF15,Top:Bottom,1)) -> 
AF16: 99999 | AG16: =IF(AF16=99999,"",RANK(AF16,Top:Bottom,1)) -> 
AF17: 99999 | AG17: =IF(AF17=99999,"",RANK(AF17,Top:Bottom,1)) -> 
AF18: 99999 | AG18: =IF(AF18=99999,"",RANK(AF18,Top:Bottom,1)) -> 
AF19: 99999 | AG19: =IF(AF19=99999,"",RANK(AF19,Top:Bottom,1)) -> 
AF20: 99999 | AG20: =IF(AF20=99999,"",RANK(AF20,Top:Bottom,1)) -> 
AF21: 99999 | AG21: =IF(AF21=99999,"",RANK(AF21,Top:Bottom,1)) -> 
AF22: 99999 | AG22: =IF(AF22=99999,"",RANK(AF22,Top:Bottom,1)) -> 
AF23: 99999 | AG23: =IF(AF23=99999,"",RANK(AF23,Top:Bottom,1)) -> 
AF24: 99999 | AG24: =IF(AF24=99999,"",RANK(AF24,Top:Bottom,1)) -> 
AF25: 99999 | AG25: =IF(AF25=99999,"",RANK(AF25,Top:Bottom,1)) -> 
AF26: 99999 | AG26: =IF(AF26=99999,"",RANK(AF26,Top:Bottom,1)) -> 
AF27: 99999 | AG27: =IF(AF27=99999,"",RANK(AF27,Top:Bottom,1)) -> 
AF28: 99999 | AG28: =IF(AF28=99999,"",RANK(AF28,Top:Bottom,1)) -> 
AF29: 99999 | AG29: =IF(AF29=99999,"",RANK(AF29,Top:Bottom,1)) -> 
AF30: 99999 | AG30: =IF(AF30=99999,"",RANK(AF30,Top:Bottom,1)) -> 
AF31: 99999 | AG31: =IF(AF31=99999,"",RANK(AF31,Top:Bottom,1)) -> 
AF32: 99999 | AG32: =IF(AF32=99999,"",RANK(AF32,Top:Bottom,1)) -> 
AF33: 99999 | AG33: =IF(AF33=99999,"",RANK(AF33,Top:Bottom,1)) -> 
AF34: 99999 | AG34: =IF(AF34=99999,"",RANK(AF34,Top:Bottom,1)) -> 
AF35: 99999 | AG35: =IF(AF35=99999,"",RANK(AF35,Top:Bottom,1)) -> 
AC36: =IF(AA36="","",AB36-AA36) ->  | AD36: =IF(AC36="","",ABS(AC36-BogeyTime)) ->  | AE36: =IF(COUNTIF(B36:Z36,"e")>0,"E",(IF(AA36="","",SUM(B36:Z36)))) ->  | AF36: =IF(OR(AA36="",AE36="E"),99999,(IF(AC36<BogeyTime,AD36*86401,AD36*86400)+AE36*100)) -> 99999 | AG36: =IF(AF36=99999,"",RANK(AF36,Top:Bottom,1)) -> 
AF37: 99999 | AG37: =IF(AF37=99999,"",RANK(AF37,Top:Bottom,1)) -> 
AF38: 99999 | AG38: =IF(AF38=99999,"",RANK(AF38,Top:Bottom,1)) -> 
AF39: 99999 | AG39: =IF(AF39=99999,"",RANK(AF39,Top:Bottom,1)) -> 
AF40: 99999 | AG40: =IF(AF40=99999,"",RANK(AF40,Top:Bottom,1)) -> 
AF41: 99999 | AG41: =IF(AF41=99999,"",RANK(AF41,Top:Bottom,1)) -> 
AF42: 99999 | AG42: =IF(AF42=99999,"",RANK(AF42,Top:Bottom,1)) -> 
AF43: 99999 | AG43: =IF(AF43=99999,"",RANK(AF43,Top:Bottom,1)) -> 
AF44: 99999 | AG44: =IF(AF44=99999,"",RANK(AF44,Top:Bottom,1)) -> 
AF45: 99999 | AG45: =IF(AF45=99999,"",RANK(AF45,Top:Bottom,1)) -> 
AF46: 99999 | AG46: =IF(AF46=99999,"",RANK(AF46,Top:Bottom,1)) -> 
AF47: 99999 | AG47: =IF(AF47=99999,"",RANK(AF47,Top:Bottom,1)) -> 
AF48: 99999 | AG48: =IF(AF48=99999,"",RANK(AF48,Top:Bottom,1)) -> 
AF49: 99999 | AG49: =IF(AF49=99999,"",RANK(AF49,Top:Bottom,1)) -> 
AF50: 99999 | AG50: =IF(AF50=99999,"",RANK(AF50,Top:Bottom,1)) -> 
AF51: 99999 | AG51: =IF(AF51=99999,"",RANK(AF51,Top:Bottom,1)) -> 
AF52: 99999 | AG52: =IF(AF52=99999,"",RANK(AF52,Top:Bottom,1)) -> 
AF53: 99999 | AG53: =IF(AF53=99999,"",RANK(AF53,Top:Bottom,1)) -> 
AF54: 99999 | AG54: =IF(AF54=99999,"",RANK(AF54,Top:Bottom,1)) -> 
AF55: 99999 | AG55: =IF(AF55=99999,"",RANK(AF55,Top:Bottom,1)) -> 
AF56: 99999 | AG56: =IF(AF56=99999,"",RANK(AF56,Top:Bottom,1)) -> 
AF57: 99999 | AG57: =IF(AF57=99999,"",RANK(AF57,Top:Bottom,1)) -> 
AF58: 99999 | AG58: =IF(AF58=99999,"",RANK(AF58,Top:Bottom,1)) -> 
AF59: 99999 | AG59: =IF(AF59=99999,"",RANK(AF59,Top:Bottom,1)) -> 
AF60: 99999 | AG60: =IF(AF60=99999,"",RANK(AF60,Top:Bottom,1)) -> 
AF61: 99999 | AG61: =IF(AF61=99999,"",RANK(AF61,Top:Bottom,1)) -> 
AF62: 99999 | AG62: =IF(AF62=99999,"",RANK(AF62,Top:Bottom,1)) -> 
AF63: 99999 | AG63: =IF(AF63=99999,"",RANK(AF63,Top:Bottom,1)) -> 
AF64: 99999 | AG64: =IF(AF64=99999,"",RANK(AF64,Top:Bottom,1)) -> 
AF65: 99999 | AG65: =IF(AF65=99999,"",RANK(AF65,Top:Bottom,1)) -> 
AF66: 99999 | AG66: =IF(AF66=99999,"",RANK(AF66,Top:Bottom,1)) -> 
AF67: 99999 | AG67: =IF(AF67=99999,"",RANK(AF67,Top:Bottom,1)) -> 
AC68: =IF(AA68="","",AB68-AA68) ->  | AD68: =IF(AC68="","",ABS(AC68-BogeyTime)) ->  | AE68: =IF(COUNTIF(B68:Z68,"e")>0,"E",(IF(AA68="","",SUM(B68:Z68)))) ->  | AF68: =IF(OR(AA68="",AE68="E"),99999,(IF(AC68<BogeyTime,AD68*86401,AD68*86400)+AE68*100)) -> 99999 | AG68: =IF(AF68=99999,"",RANK(AF68,Top:Bottom,1)) -> 
AF69: 99999 | AG69: =IF(AF69=99999,"",RANK(AF69,Top:Bottom,1)) -> 
AF70: 99999 | AG70: =IF(AF70=99999,"",RANK(AF70,Top:Bottom,1)) -> 
AF71: 99999 | AG71: =IF(AF71=99999,"",RANK(AF71,Top:Bottom,1)) -> 
AF72: 99999 | AG72: =IF(AF72=99999,"",RANK(AF72,Top:Bottom,1)) -> 
AF73: 99999 | AG73: =IF(AF73=99999,"",RANK(AF73,Top:Bottom,1)) -> 
AF74: 99999 | AG74: =IF(AF74=99999,"",RANK(AF74,Top:Bottom,1)) -> 
AF75: 99999 | AG75: =IF(AF75=99999,"",RANK(AF75,Top:Bottom,1)) -> 
AF76: 99999 | AG76: =IF(AF76=99999,"",RANK(AF76,Top:Bottom,1)) -> 
AF77: 99999 | AG77: =IF(AF77=99999,"",RANK(AF77,Top:Bottom,1)) -> 
AF78: 99999 | AG78: =IF(AF78=99999,"",RANK(AF78,Top:Bottom,1)) -> 
AF79: 99999 | AG79: =IF(AF79=99999,"",RANK(AF79,Top:Bottom,1)) -> 
AF80: 99999 | AG80: =IF(AF80=99999,"",RANK(AF80,Top:Bottom,1)) -> 
AF81: 99999 | AG81: =IF(AF81=99999,"",RANK(AF81,Top:Bottom,1)) -> 
AF82: 99999 | AG82: =IF(AF82=99999,"",RANK(AF82,Top:Bottom,1)) -> 
AF83: 99999 | AG83: =IF(AF83=99999,"",RANK(AF83,Top:Bottom,1)) -> 
AF84: 99999 | AG84: =IF(AF84=99999,"",RANK(AF84,Top:Bottom,1)) -> 
AF85: 99999 | AG85: =IF(AF85=99999,"",RANK(AF85,Top:Bottom,1)) -> 
AF86: 99999 | AG86: =IF(AF86=99999,"",RANK(AF86,Top:Bottom,1)) -> 
AF87: 99999 | AG87: =IF(AF87=99999,"",RANK(AF87,Top:Bottom,1)) -> 
AF88: 99999 | AG88: =IF(AF88=99999,"",RANK(AF88,Top:Bottom,1)) -> 
AF89: 99999 | AG89: =IF(AF89=99999,"",RANK(AF89,Top:Bottom,1)) -> 
AF90: 99999 | AG90: =IF(AF90=99999,"",RANK(AF90,Top:Bottom,1)) -> 
AF91: 99999 | AG91: =IF(AF91=99999,"",RANK(AF91,Top:Bottom,1)) -> 
AF92: 99999 | AG92: =IF(AF92=99999,"",RANK(AF92,Top:Bottom,1)) -> 
AF93: 99999 | AG93: =IF(AF93=99999,"",RANK(AF93,Top:Bottom,1)) -> 
AF94: 99999 | AG94: =IF(AF94=99999,"",RANK(AF94,Top:Bottom,1)) -> 
AF95: 99999 | AG95: =IF(AF95=99999,"",RANK(AF95,Top:Bottom,1)) -> 
AF96: 99999 | AG96: =IF(AF96=99999,"",RANK(AF96,Top:Bottom,1)) -> 
AF97: 99999 | AG97: =IF(AF97=99999,"",RANK(AF97,Top:Bottom,1)) -> 
AF98: 99999 | AG98: =IF(AF98=99999,"",RANK(AF98,Top:Bottom,1)) -> 
AF99: 99999 | AG99: =IF(AF99=99999,"",RANK(AF99,Top:Bottom,1)) -> 
AC100: =IF(AA100="","",AB100-AA100) ->  | AD100: =IF(AC100="","",ABS(AC100-BogeyTime)) ->  | AF100: =IF(OR(AA100="",AE100="E"),99999,(IF(AC100<BogeyTime,AD100*86401,AD100*86400)+AE100*100)) -> 99999 | AG100: =IF(AF100=99999,"",RANK(AF100,Top:Bottom,1)) -> 
AC101: =IF(AA101="","",AB101-AA101) ->  | AD101: =IF(AC101="","",ABS(AC101-BogeyTime)) ->  | AF101: =IF(OR(AA101="",AE101="E"),99999,(IF(AC101<BogeyTime,AD101*86401,AD101*86400)+AE101*100)) -> 99999 | AG101: =IF(AF101=99999,"",RANK(AF101,Top:Bottom,1)) -> 
AC102: =IF(AA102="","",AB102-AA102) ->  | AD102: =IF(AC102="","",ABS(AC102-BogeyTime)) ->  | AF102: =IF(OR(AA102="",AE102="E"),99999,(IF(AC102<BogeyTime,AD102*86401,AD102*86400)+AE102*100)) -> 99999 | AG102: =IF(AF102=99999,"",RANK(AF102,Top:Bottom,1)) -> 
A103: PJLH 15/03

Sheet Class 1
A1: Hunter Trials Scoresheet | K1: Date: | M1: 26/07/15 | P1: Class: | R1: 1 | S1: Height Cm: | V1: Min | X1: Speed Mpm | AA1: 250 | AB1: Timed Dist (mtr) | AC1: 577 | AD1: T/S Optimum: | AG1: =TIME(INT((Distance*60/Speed)/3600),INT(MOD((Distance*60/Speed),3600)/60),MOD(MOD((Distance*60/Speed),3600),60)) -> 00:02:18
A2: No. | B2: 1 | C2: 2 | D2: 3 | E2: 4 | F2: 5 | G2: 6 | H2: 7 | I2: 8 | J2: 9 | K2: 10 | L2: 11 | M2: 12 | N2: 13 | O2: 14 | P2: 15 | Q2: 16 | R2: 17 | AA2: Timed Section | AE2: Jump Total | AF2: Total Penalties | AG2: Position
AA3: Start | AB3: End | AC3: Elapsed | AD3: Variance
A4: 134 | B4: 0 | C4: 0 | D4: 0 | E4: 20 | F4: 0 | G4: 0 | H4: 0 | N4: 0 | O4: 0 | P4: 0 | Q4: 0 | R4: 0 | S4: 0 | T4: 0 | AA4: 0 | AB4: 00:01:47 | AC4: =IF(AA4="","",AB4-AA4) -> 00:01:47 | AD4: =IF(AC4="","",ABS(AC4-BogeyTime)) -> 0.0003587962963 | AE4: =IF(COUNTIF(B4:Z4,"e")>0,"E",(IF(AA4="","",SUM(B4:Z4)))) -> 20 | AF4: =IF(OR(AA4="",AE4="E"),99999,(IF(AC4<BogeyTime,AD4*86401,AD4*86400)+AE4*100)) -> 2031.000359 | AG4: =IF(AF4=99999,"",RANK(AF4,Top:Bottom,1)) -> 7
A5: 135 | B5: 0 | C5: 0 | D5: 0 | E5: 0 | F5: 0 | G5: 0 | H5: 0 | N5: 0 | O5: 0 | P5: 0 | Q5: 0 | R5: 0 | S5: 0 | T5: 0 | AA5: 0 | AB5: 00:01:42 | AC5: 00:01:42 | AD5: 0.0004166666667 | AE5: =IF(COUNTIF(B5:Z5,"e")>0,"E",(IF(AA5="","",SUM(B5:Z5)))) -> 0 | AF5: 36.00041667 | AG5: =IF(AF5=99999,"",RANK(AF5,Top:Bottom,1)) -> 4
A6: 126 | B6: 0 | C6: 20 | D6: 0 | E6: 0 | F6: 0 | G6: 0 | H6: E | N6: 0 | O6: 0 | P6: 0 | Q6: 0 | R6: 0 | S6: 0 | T6: 0 | AA6: 0 | AB6: 00:02:39 | AC6: 00:02:39 | AD6: 0.0002430555556 | AE6: E | AF6: 99999 | AG6: =IF(AF6=99999,"",RANK(AF6,Top:Bottom,1)) -> 
A7: 137 | B7: E | AA7: 00:00:00 | AC7: 00:00:00 | AD7: 0.001597222222 | AE7: E | AF7: 99999 | AG7: =IF(AF7=99999,"",RANK(AF7,Top:Bottom,1)) -> 
A8: 136 | B8: 0 | C8: 0 | D8: 0 | E8: 0 | F8: 0 | G8: 0 | H8: 0 | N8: 0 | O8: 0 | P8: 0 | Q8: 0 | R8: 0 | S8: 0 | T8: 0 | AA8: 00:00:00 | AB8: 00:01:40 | AC8: 00:01:40 | AD8: 0.0004398148148 | AE8: 0 | AF8: 38.00043981 | AG8: =IF(AF8=99999,"",RANK(AF8,Top:Bottom,1)) -> 5
A9: 129 | B9: 0 | C9: 0 | D9: 0 | E9: 20 | F9: 0 | G9: 0 | H9: 0 | N9: 0 | O9: 0 | P9: 0 | Q9: 0 | R9: 0 | S9: 0 | T9: 0 | AA9: 00:00:00 | AB9: 00:01:31 | AC9: 00:01:31 | AD9: 0.0005439814815 | AE9: 20 | AF9: 2047.000544 | AG9: =IF(AF9=99999,"",RANK(AF9,Top:Bottom,1)) -> 8
A10: 130 | B10: 0 | C10: 0 | D10: 0 | E10: 0 | F10: 0 | G10: 0 | H10: 0 | N10: 0 | O10: 0 | P10: 0 | Q10: 0 | R10: 0 | S10: 0 | T10: 0 | AA10: 00:00:00 | AB10: 00:01:56 | AC10: 00:01:56 | AD10: 0.0002546296296 | AE10: 0 | AF10: 22.00025463 | AG10: =IF(AF10=99999,"",RANK(AF10,Top:Bottom,1)) -> 1
A11: 123 | B11: 0 | C11: 0 | D11: 0 | E11: 0 | F11: 0 | G11: 0 | H11: 0 | N11: 0 | O11: 0 | P11: 0 | Q11: 0 | R11: 0 | S11: 0 | T11: 0 | AA11: 00:00:00 | AB11: 00:01:56 | AC11: 00:01:56 | AD11: 0.0002546296296 | AE11: 0 | AF11: 22.00025463 | AG11: =IF(AF11=99999,"",RANK(AF11,Top:Bottom,1)) -> 1
A12: 131 | B12: 20 | C12: 0 | D12: 20 | E12: 0 | F12: 0 | G12: 0 | H12: E | N12: 0 | O12: 0 | P12: 0 | Q12: 0 | R12: 0 | S12: 0 | T12: 0 | AA12: 00:00:00 | AC12: 00:00:00 | AD12: 0.001597222222 | AE12: E | AF12: 99999 | AG12: =IF(AF12=99999,"",RANK(AF12,Top:Bottom,1)) -> 
A13: 132 | B13: 0 | C13: 0 | D13: 0 | E13: 0 | F13: 0 | G13: 0 | H13: 0 | N13: 0 | O13: 0 | P13: 0 | Q13: 0 | R13: 0 | S13: 0 | T13: 0 | AA13: 00:00:00 | AB13: 00:01:31 | AC13: 00:01:31 | AD13: 0.0005439814815 | AE13: 0 | AF13: 47.00054398 | AG13: =IF(AF13=99999,"",RANK(AF13,Top:Bottom,1)) -> 6
A14: 124 | B14: 0 | C14: 0 | D14: 0 | E14: 0 | F14: 0 | G14: 0 | H14: 0 | N14: 0 | O14: 0 | P14: 0 | Q14: 0 | R14: 0 | S14: 0 | T14: 0 | AA14: 00:00:00 | AB14: 00:01:53 | AC14: 00:01:53 | AD14: 0.0002893518519 | AE14: 0 | AF14: 25.00028935 | AG14: =IF(AF14=99999,"",RANK(AF14,Top:Bottom,1)) -> 3
AF23: 99999 | AG23: =IF(AF23=99999,"",RANK(AF23,Top:Bottom,1)) -> 
AF24: 99999 | AG24: =IF(AF24=99999,"",RANK(AF24,Top:Bottom,1)) -> 
AF25: 99999 | AG25: =IF(AF25=99999,"",RANK(AF25,Top:Bottom,1)) -> 
AF26: 99999 | AG26: =IF(AF26=99999,"",RANK(AF26,Top:Bottom,1)) -> 
AF27: 99999 | AG27: =IF(AF27=99999,"",RANK(AF27,Top:Bottom,1)) -> 
AF28: 99999 | AG28: =IF(AF28=99999,"",RANK(AF28,Top:Bottom,1)) -> 
AF29: 99999 | AG29: =IF(AF29=99999,"",RANK(AF29,Top:Bottom,1)) -> 
AF30: 99999 | AG30: =IF(AF30=99999,"",RANK(AF30,Top:Bottom,1)) -> 
AF31: 99999 | AG31: =IF(AF31=99999,"",RANK(AF31,Top:Bottom,1)) -> 
AF32: 99999 | AG32: =IF(AF32=99999,"",RANK(AF32,Top:Bottom,1)) -> 
AF33: 99999 | AG33: =IF(AF33=99999,"",RANK(AF33,Top:Bottom,1)) -> 
AF34: 99999 | AG34: =IF(AF34=99999,"",RANK(AF34,Top:Bottom,1)) -> 
AF35: 99999 | AG35: =IF(AF35=99999,"",RANK(AF35,Top:Bottom,1)) -> 
AC36: =IF(AA36="","",AB36-AA36) ->  | AD36: =IF(AC36="","",ABS(AC36-BogeyTime)) ->  | AE36: =IF(COUNTIF(B36:Z36,"e")>0,"E",(IF(AA36="","",SUM(B36:Z36)))) ->  | AF36: =IF(OR(AA36="",AE36="E"),99999,(IF(AC36<BogeyTime,AD36*86401,AD36*86400)+AE36*100)) -> 99999 | AG36: =IF(AF36=99999,"",RANK(AF36,Top:Bottom,1)) -> 
AF37: 99999 | AG37: =IF(AF37=99999,"",RANK(AF37,Top:Bottom,1)) -> 
AF38: 99999 | AG38: =IF(AF38=99999,"",RANK(AF38,Top:Bottom,1)) -> 
AF39: 99999 | AG39: =IF(AF39=99999,"",RANK(AF39,Top:Bottom,1)) -> 
AF40: 99999 | AG40: =IF(AF40=99999,"",RANK(AF40,Top:Bottom,1)) -> 
AF41: 99999 | AG41: =IF(AF41=99999,"",RANK(AF41,Top:Bottom,1)) -> 
AF42: 99999 | AG42: =IF(AF42=99999,"",RANK(AF42,Top:Bottom,1)) -> 
AF43: 99999 | AG43: =IF(AF43=99999,"",RANK(AF43,Top:Bottom,1)) -> 
AF44: 99999 | AG44: =IF(AF44=99999,"",RANK(AF44,Top:Bottom,1)) -> 
AF45: 99999 | AG45: =IF(AF45=99999,"",RANK(AF45,Top:Bottom,1)) -> 
AF46: 99999 | AG46: =IF(AF46=99999,"",RANK(AF46,Top:Bottom,1)) -> 
AF47: 99999 | AG47: =IF(AF47=99999,"",RANK(AF47,Top:Bottom,1)) -> 
AF48: 99999 | AG48: =IF(AF48=99999,"",RANK(AF48,Top:Bottom,1)) -> 
AF49: 99999 | AG49: =IF(AF49=99999,"",RANK(AF49,Top:Bottom,1)) -> 
AF50: 99999 | AG50: =IF(AF50=99999,"",RANK(AF50,Top:Bottom,1)) -> 
AF51: 99999 | AG51: =IF(AF51=99999,"",RANK(AF51,Top:Bottom,1)) -> 
AF52: 99999 | AG52: =IF(AF52=99999,"",RANK(AF52,Top:Bottom,1)) -> 
AF53: 99999 | AG53: =IF(AF53=99999,"",RANK(AF53,Top:Bottom,1)) -> 
AF54: 99999 | AG54: =IF(AF54=99999,"",RANK(AF54,Top:Bottom,1)) -> 
AF55: 99999 | AG55: =IF(AF55=99999,"",RANK(AF55,Top:Bottom,1)) -> 
AF56: 99999 | AG56: =IF(AF56=99999,"",RANK(AF56,Top:Bottom,1)) -> 
AF57: 99999 | AG57: =IF(AF57=99999,"",RANK(AF57,Top:Bottom,1)) -> 
AF58: 99999 | AG58: =IF(AF58=99999,"",RANK(AF58,Top:Bottom,1)) -> 
AF59: 99999 | AG59: =IF(AF59=99999,"",RANK(AF59,Top:Bottom,1)) -> 
AF60: 99999 | AG60: =IF(AF60=99999,"",RANK(AF60,Top:Bottom,1)) -> 
AF61: 99999 | AG61: =IF(AF61=99999,"",RANK(AF61,Top:Bottom,1)) -> 
AF62: 99999 | AG62: =IF(AF62=99999,"",RANK(AF62,Top:Bottom,1)) -> 
AF63: 99999 | AG63: =IF(AF63=99999,"",RANK(AF63,Top:Bottom,1)) -> 
AF64: 99999 | AG64: =IF(AF64=99999,"",RANK(AF64,Top:Bottom,1)) -> 
AF65: 99999 | AG65: =IF(AF65=99999,"",RANK(AF65,Top:Bottom,1)) -> 
AF66: 99999 | AG66: =IF(AF66=99999,"",RANK(AF66,Top:Bottom,1)) -> 
AF67: 99999 | AG67: =IF(AF67=99999,"",RANK(AF67,Top:Bottom,1)) -> 
AC68: =IF(AA68="","",AB68-AA68) ->  | AD68: =IF(AC68="","",ABS(AC68-BogeyTime)) ->  | AE68: =IF(COUNTIF(B68:Z68,"e")>0,"E",(IF(AA68="","",SUM(B68:Z68)))) ->  | AF68: =IF(OR(AA68="",AE68="E"),99999,(IF(AC68<BogeyTime,AD68*86401,AD68*86400)+AE68*100)) -> 99999 | AG68: =IF(AF68=99999,"",RANK(AF68,Top:Bottom,1)) -> 
AF69: 99999 | AG69: =IF(AF69=99999,"",RANK(AF69,Top:Bottom,1)) -> 
AF70: 99999 | AG70: =IF(AF70=99999,"",RANK(AF70,Top:Bottom,1)) -> 
AF71: 99999 | AG71: =IF(AF71=99999,"",RANK(AF71,Top:Bottom,1)) -> 
AF72: 99999 | AG72: =IF(AF72=99999,"",RANK(AF72,Top:Bottom,1)) -> 
AF73: 99999 | AG73: =IF(AF73=99999,"",RANK(AF73,Top:Bottom,1)) -> 
AF74: 99999 | AG74: =IF(AF74=99999,"",RANK(AF74,Top:Bottom,1)) -> 
AF75: 99999 | AG75: =IF(AF75=99999,"",RANK(AF75,Top:Bottom,1)) -> 
AF76: 99999 | AG76: =IF(AF76=99999,"",RANK(AF76,Top:Bottom,1)) -> 
AF77: 99999 | AG77: =IF(AF77=99999,"",RANK(AF77,Top:Bottom,1)) -> 
AF78: 99999 | AG78: =IF(AF78=99999,"",RANK(AF78,Top:Bottom,1)) -> 
AF79: 99999 | AG79: =IF(AF79=99999,"",RANK(AF79,Top:Bottom,1)) -> 
AF80: 99999 | AG80: =IF(AF80=99999,"",RANK(AF80,Top:Bottom,1)) -> 
AF81: 99999 | AG81: =IF(AF81=99999,"",RANK(AF81,Top:Bottom,1)) -> 
AF82: 99999 | AG82: =IF(AF82=99999,"",RANK(AF82,Top:Bottom,1)) -> 
AF83: 99999 | AG83: =IF(AF83=99999,"",RANK(AF83,Top:Bottom,1)) -> 
AF84: 99999 | AG84: =IF(AF84=99999,"",RANK(AF84,Top:Bottom,1)) -> 
AF85: 99999 | AG85: =IF(AF85=99999,"",RANK(AF85,Top:Bottom,1)) -> 
AF86: 99999 | AG86: =IF(AF86=99999,"",RANK(AF86,Top:Bottom,1)) -> 
AF87: 99999 | AG87: =IF(AF87=99999,"",RANK(AF87,Top:Bottom,1)) -> 
AF88: 99999 | AG88: =IF(AF88=99999,"",RANK(AF88,Top:Bottom,1)) -> 
AF89: 99999 | AG89: =IF(AF89=99999,"",RANK(AF89,Top:Bottom,1)) -> 
AF90: 99999 | AG90: =IF(AF90=99999,"",RANK(AF90,Top:Bottom,1)) -> 
AF91: 99999 | AG91: =IF(AF91=99999,"",RANK(AF91,Top:Bottom,1)) -> 
AF92: 99999 | AG92: =IF(AF92=99999,"",RANK(AF92,Top:Bottom,1)) -> 
AF93: 99999 | AG93: =IF(AF93=99999,"",RANK(AF93,Top:Bottom,1)) -> 
AF94: 99999 | AG94: =IF(AF94=99999,"",RANK(AF94,Top:Bottom,1)) -> 
AF95: 99999 | AG95: =IF(AF95=99999,"",RANK(AF95,Top:Bottom,1)) -> 
AF96: 99999 | AG96: =IF(AF96=99999,"",RANK(AF96,Top:Bottom,1)) -> 
AF97: 99999 | AG97: =IF(AF97=99999,"",RANK(AF97,Top:Bottom,1)) -> 
AF98: 99999 | AG98: =IF(AF98=99999,"",RANK(AF98,Top:Bottom,1)) -> 
AF99: 99999 | AG99: =IF(AF99=99999,"",RANK(AF99,Top:Bottom,1)) -> 
AC100: =IF(AA100="","",AB100-AA100) ->  | AD100: =IF(AC100="","",ABS(AC100-BogeyTime)) ->  | AF100: =IF(OR(AA100="",AE100="E"),99999,(IF(AC100<BogeyTime,AD100*86401,AD100*86400)+AE100*100)) -> 99999 | AG100: =IF(AF100=99999,"",RANK(AF100,Top:Bottom,1)) -> 
AC101: =IF(AA101="","",AB101-AA101) ->  | AD101: =IF(AC101="","",ABS(AC101-BogeyTime)) ->  | AF101: =IF(OR(AA101="",AE101="E"),99999,(IF(AC101<BogeyTime,AD101*86401,AD101*86400)+AE101*100)) -> 99999 | AG101: =IF(AF101=99999,"",RANK(AF101,Top:Bottom,1)) -> 
AC102: =IF(AA102="","",AB102-AA102) ->  | AD102: =IF(AC102="","",ABS(AC102-BogeyTime)) ->  | AF102: =IF(OR(AA102="",AE102="E"),99999,(IF(AC102<BogeyTime,AD102*86401,AD102*86400)+AE102*100)) -> 99999 | AG102: =IF(AF102=99999,"",RANK(AF102,Top:Bottom,1)) -> 
A103: PJLH 15/03

Sheet Class 2
A1: Hunter Trials Scoresheet | K1: Date: | M1: 26/07/15 | P1: Class: | R1: 2 | S1: Height Cm: | V1: 80 | X1: Speed Mpm | AA1: =(IF(Height=80,435,IF(Height=90,450,IF(Height=100,475,250)))) -> 435 | AB1: Timed Dist (mtr) | AC1: 610 | AD1: T/S Optimum: | AG1: =TIME(INT((Distance*60/Speed)/3600),INT(MOD((Distance*60/Speed),3600)/60),MOD(MOD((Distance*60/Speed),3600),60)) -> 00:01:24
A2: No. | B2: 1 | C2: 2 | D2: 3 | E2: 4 | F2: 5 | G2: 6 | H2: 7 | I2: 8 | J2: 9 | K2: 10 | L2: 11 | M2: 12 | N2: 13 | O2: 14 | P2: 15 | Q2: 16 | R2: 17 | S2: 18 | T2: 19 | U2: 20 | AA2: Timed Section | AE2: Jump Total | AF2: Total Penalties | AG2: Position
AA3: Start | AB3: End | AC3: Elapsed | AD3: Variance
A4: 208 | B4: 0 | C4: 20 | D4: 0 | E4: 20 | F4: 20 | G4: 0 | H4: 0 | O4: 0 | P4: 0 | Q4: 0 | R4: 0 | S4: E | T4: 0 | U4: 0 | AA4: 0 | AB4: 00:01:40 | AC4: =IF(AA4="","",AB4-AA4) -> 00:01:40 | AD4: =IF(AC4="","",ABS(AC4-BogeyTime)) -> 0.0001851851852 | AE4: =IF(COUNTIF(B4:Z4,"e")>0,"E",(IF(AA4="","",SUM(B4:Z4)))) -> E | AF4: =IF(OR(AA4="",AE4="E"),99999,(IF(AC4<BogeyTime,AD4*86401,AD4*86400)+AE4*100)) -> 99999 | AG4: =IF(AF4=99999,"",RANK(AF4,Top:Bottom,1)) -> 
A5: 209 | B5: 0 | C5: 0 | D5: 0 | E5: 0 | F5: 0 | G5: 0 | H5: 0 | O5: 0 | P5: 0 | Q5: 0 | R5: 0 | S5: 0 | T5: 0 | U5: 0 | AA5: 0 | AB5: 00:01:34 | AC5: 00:01:34 | AD5: 0.0001157407407 | AE5: 0 | AF5: 10 | AG5: =IF(AF5=99999,"",RANK(AF5,Top:Bottom,1)) -> 3
A6: 222 | B6: 0 | C6: 0 | D6: 0 | E6: 0 | F6: 0 | G6: 0 | H6: 0 | O6: 0 | P6: 0 | Q6: 0 | R6: 0 | S6: 0 | T6: 0 | U6: 0 | AA6: 0 | AB6: 00:01:28 | AC6: 00:01:28 | AD6: 4.62962963e-05 | AE6: 0 | AF6: 4 | AG6: =IF(AF6=99999,"",RANK(AF6,Top:Bottom,1)) -> 2
A7: 203 | B7: 0 | C7: 0 | D7: 0 | E7: 0 | F7: 0 | G7: 0 | H7: 0 | O7: 0 | P7: 0 | Q7: 0 | R7: 0 | S7: 0 | T7: 0 | U7: 0 | AA7: 00:00:00 | AB7: 00:01:34 | AC7: 00:01:34 | AD7: 0.0001157407407 | AE7: 0 | AF7: 10 | AG7: =IF(AF7=99999,"",RANK(AF7,Top:Bottom,1)) -> 3
A8: 215 | B8: 0 | C8: 0 | D8: 0 | E8: 0 | F8: 0 | G8: 0 | H8: 0 | O8: 0 | P8: 0 | Q8: 0 | R8: 0 | S8: 0 | T8: 0 | U8: 0 | AA8: 00:00:00 | AB8: 00:02:30 | AC8: 00:02:30 | AD8: 0.0007638888889 | AE8: 0 | AF8: 66 | AG8: =IF(AF8=99999,"",RANK(AF8,Top:Bottom,1)) -> 8
A9: 211 | B9: 0 | C9: 0 | D9: 0 | E9: 0 | F9: 0 | G9: 0 | H9: 0 | O9: 0 | P9: 0 | Q9: 0 | R9: 0 | S9: 0 | T9: 0 | U9: 0 | AA9: 00:00:00 | AB9: 00:01:56 | AC9: 00:01:56 | AD9: 0.0003703703704 | AE9: 0 | AF9: 32 | AG9: =IF(AF9=99999,"",RANK(AF9,Top:Bottom,1)) -> 7
A10: 223 | B10: 0 | C10: 0 | D10: 0 | E10: 0 | F10: 20 | G10: E | H10: E | O10: 0 | P10: 0 | Q10: 0 | R10: 0 | S10: 0 | T10: 0 | U10: 0 | AA10: 00:00:00 | AC10: 00:00:00 | AD10: 0.0009722222222 | AE10: E | AF10: 99999 | AG10: =IF(AF10=99999,"",RANK(AF10,Top:Bottom,1)) -> 
A11: 221 | B11: 0 | C11: 0 | D11: 0 | E11: 0 | F11: 20 | G11: 0 | H11: E | O11: 0 | P11: 0 | Q11: 0 | R11: 0 | S11: 0 | T11: 0 | U11: 0 | AA11: 00:00:00 | AC11: 00:00:00 | AD11: 0.0009722222222 | AE11: E | AF11: 99999 | AG11: =IF(AF11=99999,"",RANK(AF11,Top:Bottom,1)) -> 
A12: 213 | B12: 0 | C12: 0 | D12: 0 | E12: 0 | F12: 0 | G12: 0 | H12: 0 | O12: 20 | P12: 0 | Q12: 0 | R12: 0 | S12: 0 | T12: 0 | U12: 0 | AA12: 00:00:00 | AB12: 00:01:58 | AC12: 00:01:58 | AD12: 0.0003935185185 | AE12: 20 | AF12: 2034 | AG12: =IF(AF12=99999,"",RANK(AF12,Top:Bottom,1)) -> 11
A13: 219 | B13: 0 | C13: 0 | D13: 0 | E13: 0 | F13: 0 | G13: 0 | H13: 0 | O13: 0 | P13: 0 | Q13: 0 | R13: 0 | S13: 0 | T13: 0 | U13: 0 | AA13: 00:00:00 | AB13: 00:01:42 | AC13: 00:01:42 | AD13: 0.0002083333333 | AE13: 0 | AF13: 18 | AG13: =IF(AF13=99999,"",RANK(AF13,Top:Bottom,1)) -> 5
A14: 206 | B14: 0 | C14: 0 | D14: 0 | E14: 0 | F14: 0 | G14: 0 | H14: 0 | O14: 0 | P14: 0 | Q14: 0 | R14: 0 | S14: 0 | T14: 0 | U14: 0 | AA14: 00:00:00 | AB14: 00:03:08 | AC14: 00:03:08 | AD14: 0.001203703704 | AE14: 0 | AF14: 104 | AG14: =IF(AF14=99999,"",RANK(AF14,Top:Bottom,1)) -> 9
A15: 207 | B15: 0 | C15: 0 | D15: 0 | E15: 20 | F15: 0 | G15: 0 | H15: 0 | O15: 0 | P15: 0 | Q15: 0 | R15: 0 | S15: 20 | T15: 0 | U15: 0 | AA15: 00:00:00 | AB15: 00:01:47 | AC15: 00:01:47 | AD15: 0.0002662037037 | AE15: 40 | AF15: 4023 | AG15: =IF(AF15=99999,"",RANK(AF15,Top:Bottom,1)) -> 12
A16: 210 | B16: 0 | C16: 0 | D16: 0 | E16: 0 | F16: 0 | G16: 0 | H16: 0 | O16: 0 | P16: 0 | Q16: 0 | R16: 0 | S16: 0 | T16: 0 | U16: 0 | AA16: 00:00:00 | AB16: 00:01:22 | AC16: 00:01:22 | AD16: 2.314814815e-05 | AE16: 0 | AF16: 2.000023148 | AG16: =IF(AF16=99999,"",RANK(AF16,Top:Bottom,1)) -> 1
A17: 226 | B17: 0 | C17: 0 | D17: 20 | E17: 0 | F17: 0 | G17: 20 | H17: E | O17: 0 | P17: 0 | Q17: 0 | R17: 0 | S17: 0 | T17: 0 | U17: 0 | AA17: 00:00:00 | AB17: 00:02:00 | AC17: 00:02:00 | AD17: 0.0004166666667 | AE17: E | AF17: 99999 | AG17: =IF(AF17=99999,"",RANK(AF17,Top:Bottom,1)) -> 
A18: 225 | B18: 0 | C18: 0 | D18: 0 | E18: 0 | F18: 0 | G18: 0 | H18: 0 | O18: 0 | P18: 0 | Q18: 0 | R18: 0 | S18: 0 | T18: 0 | U18: 0 | AA18: 00:00:00 | AB18: 00:01:46 | AC18: 00:01:46 | AD18: 0.0002546296296 | AE18: 0 | AF18: 22 | AG18: =IF(AF18=99999,"",RANK(AF18,Top:Bottom,1)) -> 6
A19: 220 | B19: 0 | C19: 0 | D19: 0 | E19: 0 | F19: 20 | G19: 0 | H19: 0 | O19: 0 | P19: 0 | Q19: 0 | R19: 0 | S19: 0 | T19: 0 | U19: 0 | AA19: 00:00:00 | AB19: 00:01:35 | AC19: 00:01:35 | AD19: 0.0001273148148 | AE19: 20 | AF19: 2011 | AG19: =IF(AF19=99999,"",RANK(AF19,Top:Bottom,1)) -> 10
AC53: =IF(AA53="","",AB53-AA53) ->  | AD53: =IF(AC53="","",ABS(AC53-BogeyTime)) ->  | AE53: =IF(COUNTIF(B53:Z53,"e")>0,"E",(IF(AA53="","",SUM(B53:Z53)))) ->  | AF53: =IF(OR(AA53="",AE53="E"),99999,(IF(AC53<BogeyTime,AD53*86401,AD53*86400)+AE53*100)) -> 99999 | AG53: =IF(AF53=99999,"",RANK(AF53,Top:Bottom,1)) -> 
AF54: 99999 | AG54: =IF(AF54=99999,"",RANK(AF54,Top:Bottom,1)) -> 
AF55: 99999 | AG55: =IF(AF55=99999,"",RANK(AF55,Top:Bottom,1)) -> 
AF56: 99999 | AG56: =IF(AF56=99999,"",RANK(AF56,Top:Bottom,1)) -> 
AF57: 99999 | AG57: =IF(AF57=99999,"",RANK(AF57,Top:Bottom,1)) -> 
AF58: 99999 | AG58: =IF(AF58=99999,"",RANK(AF58,Top:Bottom,1)) -> 
AF59: 99999 | AG59: =IF(AF59=99999,"",RANK(AF59,Top:Bottom,1)) -> 
AF60: 99999 | AG60: =IF(AF60=99999,"",RANK(AF60,Top:Bottom,1)) -> 
AF61: 99999 | AG61: =IF(AF61=99999,"",RANK(AF61,Top:Bottom,1)) -> 
AF62: 99999 | AG62: =IF(AF62=99999,"",RANK(AF62,Top:Bottom,1)) -> 
AF63: 99999 | AG63: =IF(AF63=99999,"",RANK(AF63,Top:Bottom,1)) -> 
AF64: 99999 | AG64: =IF(AF64=99999,"",RANK(AF64,Top:Bottom,1)) -> 
AF65: 99999 | AG65: =IF(AF65=99999,"",RANK(AF65,Top:Bottom,1)) -> 
AF66: 99999 | AG66: =IF(AF66=99999,"",RANK(AF66,Top:Bottom,1)) -> 
AF67: 99999 | AG67: =IF(AF67=99999,"",RANK(AF67,Top:Bottom,1)) -> 
AF68: 99999 | AG68: =IF(AF68=99999,"",RANK(AF68,Top:Bottom,1)) -> 
AC69: =IF(AA69="","",AB69-AA69) ->  | AD69: =IF(AC69="","",ABS(AC69-BogeyTime)) ->  | AE69: =IF(COUNTIF(B69:Z69,"e")>0,"E",(IF(AA69="","",SUM(B69:Z69)))) ->  | AF69: =IF(OR(AA69="",AE69="E"),99999,(IF(AC69<BogeyTime,AD69*86401,AD69*86400)+AE69*100)) -> 99999 | AG69: =IF(AF69=99999,"",RANK(AF69,Top:Bottom,1)) -> 
AF70: 99999 | AG70: =IF(AF70=99999,"",RANK(AF70,Top:Bottom,1)) -> 
AF71: 99999 | AG71: =IF(AF71=99999,"",RANK(AF71,Top:Bottom,1)) -> 
AF72: 99999 | AG72: =IF(AF72=99999,"",RANK(AF72,Top:Bottom,1)) -> 
AF73: 99999 | AG73: =IF(AF73=99999,"",RANK(AF73,Top:Bottom,1)) -> 
AF74: 99999 | AG74: =IF(AF74=99999,"",RANK(AF74,Top:Bottom,1)) -> 
AF75: 99999 | AG75: =IF(AF75=99999,"",RANK(AF75,Top:Bottom,1)) -> 
AF76: 99999 | AG76: =IF(AF76=99999,"",RANK(AF76,Top:Bottom,1)) -> 
AF77: 99999 | AG77: =IF(AF77=99999,"",RANK(AF77,Top:Bottom,1)) -> 
AF78: 99999 | AG78: =IF(AF78=99999,"",RANK(AF78,Top:Bottom,1)) -> 
AF79: 99999 | AG79: =IF(AF79=99999,"",RANK(AF79,Top:Bottom,1)) -> 
AF80: 99999 | AG80: =IF(AF80=99999,"",RANK(AF80,Top:Bottom,1)) -> 
AF81: 99999 | AG81: =IF(AF81=99999,"",RANK(AF81,Top:Bottom,1)) -> 
AF82: 99999 | AG82: =IF(AF82=99999,"",RANK(AF82,Top:Bottom,1)) -> 
AF83: 99999 | AG83: =IF(AF83=99999,"",RANK(AF83,Top:Bottom,1)) -> 
AF84: 99999 | AG84: =IF(AF84=99999,"",RANK(AF84,Top:Bottom,1)) -> 
AF85: 99999 | AG85: =IF(AF85=99999,"",RANK(AF85,Top:Bottom,1)) -> 
AF86: 99999 | AG86: =IF(AF86=99999,"",RANK(AF86,Top:Bottom,1)) -> 
AF87: 99999 | AG87: =IF(AF87=99999,"",RANK(AF87,Top:Bottom,1)) -> 
AF88: 99999 | AG88: =IF(AF88=99999,"",RANK(AF88,Top:Bottom,1)) -> 
AF89: 99999 | AG89: =IF(AF89=99999,"",RANK(AF89,Top:Bottom,1)) -> 
AF90: 99999 | AG90: =IF(AF90=99999,"",RANK(AF90,Top:Bottom,1)) -> 
AF91: 99999 | AG91: =IF(AF91=99999,"",RANK(AF91,Top:Bottom,1)) -> 
AF92: 99999 | AG92: =IF(AF92=99999,"",RANK(AF92,Top:Bottom,1)) -> 
AF93: 99999 | AG93: =IF(AF93=99999,"",RANK(AF93,Top:Bottom,1)) -> 
AF94: 99999 | AG94: =IF(AF94=99999,"",RANK(AF94,Top:Bottom,1)) -> 
AF95: 99999 | AG95: =IF(AF95=99999,"",RANK(AF95,Top:Bottom,1)) -> 
AF96: 99999 | AG96: =IF(AF96=99999,"",RANK(AF96,Top:Bottom,1)) -> 
AF97: 99999 | AG97: =IF(AF97=99999,"",RANK(AF97,Top:Bottom,1)) -> 
AF98: 99999 | AG98: =IF(AF98=99999,"",RANK(AF98,Top:Bottom,1)) -> 
AF99: 99999 | AG99: =IF(AF99=99999,"",RANK(AF99,Top:Bottom,1)) -> 
AF100: 99999 | AG100: =IF(AF100=99999,"",RANK(AF100,Top:Bottom,1)) -> 
AC101: =IF(AA101="","",AB101-AA101) ->  | AD101: =IF(AC101="","",ABS(AC101-BogeyTime)) ->  | AF101: =IF(OR(AA101="",AE101="E"),99999,(IF(AC101<BogeyTime,AD101*86401,AD101*86400)+AE101*100)) -> 99999 | AG101: =IF(AF101=99999,"",RANK(AF101,Top:Bottom,1)) -> 
AC102: =IF(AA102="","",AB102-AA102) ->  | AD102: =IF(AC102="","",ABS(AC102-BogeyTime)) ->  | AF102: =IF(OR(AA102="",AE102="E"),99999,(IF(AC102<BogeyTime,AD102*86401,AD102*86400)+AE102*100)) -> 99999 | AG102: =IF(AF102=99999,"",RANK(AF102,Top:Bottom,1)) -> 
AC103: =IF(AA103="","",AB103-AA103) ->  | AD103: =IF(AC103="","",ABS(AC103-BogeyTime)) ->  | AF103: =IF(OR(AA103="",AE103="E"),99999,(IF(AC103<BogeyTime,AD103*86401,AD103*86400)+AE103*100)) -> 99999 | AG103: =IF(AF103=99999,"",RANK(AF103,Top:Bottom,1)) -> 
A104: PJLH 15/03

Sheet Class 3
A1: Hunter Trials Scoresheet | K1: Date: | M1: 26/07/15 | P1: Class: | R1: 3 | S1: Height Cm: | Y1: 80 | AA1: Speed Mpm | AD1: 435 | AE1: Timed Dist (mtr) | AF1: 610 | AG1: T/S Optimum: | AJ1: =TIME(INT((Distance*60/Speed)/3600),INT(MOD((Distance*60/Speed),3600)/60),MOD(MOD((Distance*60/Speed),3600),60)) -> 00:01:24
A2: No. | B2: 1 | C2: 2 | D2: 3 | E2: 4 | F2: 5 | G2: 6 | H2: 7 | I2: 8 | J2: 9 | K2: 10 | L2: 11 | M2: 12 | N2: 13 | O2: 14 | P2: 15 | Q2: 16 | R2: 17 | S2: 18 | W2: Pairs F16 | X2: Pairs F19 | AD2: Timed Section | AH2: Jump Total | AI2: Total Penalties | AJ2: Position
T3: 19 | U3: 20 | AD3: Start | AE3: End | AF3: Elapsed | AG3: Variance
A4: 301 | B4: 60 | C4: 0 | D4: 0 | E4: 0 | F4: E | G4: 0 | O4: 0 | P4: 0 | Q4: 0 | R4: 0 | S4: 0 | T4: 0 | U4: 0 | W4: 10 | X4: 0 | AD4: 0 | AE4: 00:02:29 | AF4: =IF(AD4="","",AE4-AD4) -> 00:02:29 | AG4: =IF(AF4="","",ABS(AF4-BogeyTime)) -> 0.0007523148148 | AH4: =IF(COUNTIF(B4:AC4,"e")>0,"E",(IF(AD4="","",SUM(B4:AC4)))) -> E | AI4: =IF(OR(AD4="",AH4="E"),99999,(IF(AF4<BogeyTime,AG4*86401,AG4*86400)+AH4*100)) -> 99999 | AJ4: =IF(AI4=99999,"",RANK(AI4,Top:Bottom,1)) -> 
A5: 303 | B5: 0 | C5: 0 | D5: 0 | E5: 0 | F5: 0 | G5: 0 | H5: 0 | O5: 0 | P5: 0 | Q5: 0 | R5: 0 | S5: 0 | T5: 0 | U5: 0 | W5: 15 | X5: 15 | AD5: 0 | AE5: 00:01:43 | AF5: 00:01:43 | AG5: 0.0002199074074 | AH5: 30 | AI5: 3019 | AJ5: =IF(AI5=99999,"",RANK(AI5,Top:Bottom,1)) -> 2
A6: 304 | B6: 0 | C6: 0 | D6: 0 | E6: 0 | F6: 0 | G6: 0 | H6: 0 | O6: 0 | P6: 0 | Q6: 0 | R6: 0 | S6: 0 | T6: 0 | U6: 0 | W6: 5 | X6: 0 | AD6: 0 | AE6: 00:01:27 | AF6: 00:01:27 | AG6: 3.472222222e-05 | AH6: 5 | AI6: 503 | AJ6: =IF(AI6=99999,"",RANK(AI6,Top:Bottom,1)) -> 1
A7: 302 | B7: 0 | C7: 0 | D7: 0 | E7: 0 | F7: 20 | G7: 0 | H7: E | O7: 0 | P7: 0 | Q7: 0 | R7: 0 | S7: 0 | T7: 0 | U7: 0 | W7: 15 | X7: 15 | AD7: 00:00:00 | AE7: 00:01:57 | AF7: 00:01:57 | AG7: 0.0003819444444 | AH7: E | AI7: 99999 | AJ7: =IF(AI7=99999,"",RANK(AI7,Top:Bottom,1)) -> 
AI8: 99999 | AJ8: =IF(AI8=99999,"",RANK(AI8,Top:Bottom,1)) -> 
AI9: 99999 | AJ9: =IF(AI9=99999,"",RANK(AI9,Top:Bottom,1)) -> 
AI10: 99999 | AJ10: =IF(AI10=99999,"",RANK(AI10,Top:Bottom,1)) -> 
AI11: 99999 | AJ11: =IF(AI11=99999,"",RANK(AI11,Top:Bottom,1)) -> 
AI12: 99999 | AJ12: =IF(AI12=99999,"",RANK(AI12,Top:Bottom,1)) -> 
AI13: 99999 | AJ13: =IF(AI13=99999,"",RANK(AI13,Top:Bottom,1)) -> 
AI14: 99999 | AJ14: =IF(AI14=99999,"",RANK(AI14,Top:Bottom,1)) -> 
AI15: 99999 | AJ15: =IF(AI15=99999,"",RANK(AI15,Top:Bottom,1)) -> 
AI16: 99999 | AJ16: =IF(AI16=99999,"",RANK(AI16,Top:Bottom,1)) -> 
AI17: 99999 | AJ17: =IF(AI17=99999,"",RANK(AI17,Top:Bottom,1)) -> 
AI18: 99999 | AJ18: =IF(AI18=99999,"",RANK(AI18,Top:Bottom,1)) -> 
AI19: 99999 | AJ19: =IF(AI19=99999,"",RANK(AI19,Top:Bottom,1)) -> 
AI20: 99999 | AJ20: =IF(AI20=99999,"",RANK(AI20,Top:Bottom,1)) -> 
AI21: 99999 | AJ21: =IF(AI21=99999,"",RANK(AI21,Top:Bottom,1)) -> 
AI22: 99999 | AJ22: =IF(AI22=99999,"",RANK(AI22,Top:Bottom,1)) -> 
AI23: 99999 | AJ23: =IF(AI23=99999,"",RANK(AI23,Top:Bottom,1)) -> 
AI24: 99999 | AJ24: =IF(AI24=99999,"",RANK(AI24,Top:Bottom,1)) -> 
AI25: 99999 | AJ25: =IF(AI25=99999,"",RANK(AI25,Top:Bottom,1)) -> 
AI26: 99999 | AJ26: =IF(AI26=99999,"",RANK(AI26,Top:Bottom,1)) -> 
AI27: 99999 | AJ27: =IF(AI27=99999,"",RANK(AI27,Top:Bottom,1)) -> 
AI28: 99999 | AJ28: =IF(AI28=99999,"",RANK(AI28,Top:Bottom,1)) -> 
AI29: 99999 | AJ29: =IF(AI29=99999,"",RANK(AI29,Top:Bottom,1)) -> 
AI30: 99999 | AJ30: =IF(AI30=99999,"",RANK(AI30,Top:Bottom,1)) -> 
AI31: 99999 | AJ31: =IF(AI31=99999,"",RANK(AI31,Top:Bottom,1)) -> 
AI32: 99999 | AJ32: =IF(AI32=99999,"",RANK(AI32,Top:Bottom,1)) -> 
AI33: 99999 | AJ33: =IF(AI33=99999,"",RANK(AI33,Top:Bottom,1)) -> 
AI34: 99999 | AJ34: =IF(AI34=99999,"",RANK(AI34,Top:Bottom,1)) -> 
AI35: 99999 | AJ35: =IF(AI35=99999,"",RANK(AI35,Top:Bottom,1)) -> 
AF36: =IF(AD36="","",AE36-AD36) ->  | AG36: =IF(AF36="","",ABS(AF36-BogeyTime)) ->  | AH36: =IF(COUNTIF(B36:AC36,"e")>0,"E",(IF(AD36="","",SUM(B36:AC36)))) ->  | AI36: =IF(OR(AD36="",AH36="E"),99999,(IF(AF36<BogeyTime,AG36*86401,AG36*86400)+AH36*100)) -> 99999 | AJ36: =IF(AI36=99999,"",RANK(AI36,Top:Bottom,1)) -> 
AI37: 99999 | AJ37: =IF(AI37=99999,"",RANK(AI37,Top:Bottom,1)) -> 
AI38: 99999 | AJ38: =IF(AI38=99999,"",RANK(AI38,Top:Bottom,1)) -> 
AI39: 99999 | AJ39: =IF(AI39=99999,"",RANK(AI39,Top:Bottom,1)) -> 
AI40: 99999 | AJ40: =IF(AI40=99999,"",RANK(AI40,Top:Bottom,1)) -> 
AI41: 99999 | AJ41: =IF(AI41=99999,"",RANK(AI41,Top:Bottom,1)) -> 
AI42: 99999 | AJ42: =IF(AI42=99999,"",RANK(AI42,Top:Bottom,1)) -> 
AI43: 99999 | AJ43: =IF(AI43=99999,"",RANK(AI43,Top:Bottom,1)) -> 
AI44: 99999 | AJ44: =IF(AI44=99999,"",RANK(AI44,Top:Bottom,1)) -> 
AI45: 99999 | AJ45: =IF(AI45=99999,"",RANK(AI45,Top:Bottom,1)) -> 
AI46: 99999 | AJ46: =IF(AI46=99999,"",RANK(AI46,Top:Bottom,1)) -> 
AI47: 99999 | AJ47: =IF(AI47=99999,"",RANK(AI47,Top:Bottom,1)) -> 
AI48: 99999 | AJ48: =IF(AI48=99999,"",RANK(AI48,Top:Bottom,1)) -> 
AI49: 99999 | AJ49: =IF(AI49=99999,"",RANK(AI49,Top:Bottom,1)) -> 
AI50: 99999 | AJ50: =IF(AI50=99999,"",RANK(AI50,Top:Bottom,1)) -> 
AI51: 99999 | AJ51: =IF(AI51=99999,"",RANK(AI51,Top:Bottom,1)) -> 
AI52: 99999 | AJ52: =IF(AI52=99999,"",RANK(AI52,Top:Bottom,1)) -> 
AI53: 99999 | AJ53: =IF(AI53=99999,"",RANK(AI53,Top:Bottom,1)) -> 
AI54: 99999 | AJ54: =IF(AI54=99999,"",RANK(AI54,Top:Bottom,1)) -> 
AI55: 99999 | AJ55: =IF(AI55=99999,"",RANK(AI55,Top:Bottom,1)) -> 
AI56: 99999 | AJ56: =IF(AI56=99999,"",RANK(AI56,Top:Bottom,1)) -> 
AI57: 99999 | AJ57: =IF(AI57=99999,"",RANK(AI57,Top:Bottom,1)) -> 
AI58: 99999 | AJ58: =IF(AI58=99999,"",RANK(AI58,Top:Bottom,1)) -> 
AI59: 99999 | AJ59: =IF(AI59=99999,"",RANK(AI59,Top:Bottom,1)) -> 
AI60: 99999 | AJ60: =IF(AI60=99999,"",RANK(AI60,Top:Bottom,1)) -> 
AI61: 99999 | AJ61: =IF(AI61=99999,"",RANK(AI61,Top:Bottom,1)) -> 
AI62: 99999 | AJ62: =IF(AI62=99999,"",RANK(AI62,Top:Bottom,1)) -> 
AI63: 99999 | AJ63: =IF(AI63=99999,"",RANK(AI63,Top:Bottom,1)) -> 
AI64: 99999 | AJ64: =IF(AI64=99999,"",RANK(AI64,Top:Bottom,1)) -> 
AI65: 99999 | AJ65: =IF(AI65=99999,"",RANK(AI65,Top:Bottom,1)) -> 
AI66: 99999 | AJ66: =IF(AI66=99999,"",RANK(AI66,Top:Bottom,1)) -> 
AI67: 99999 | AJ67: =IF(AI67=99999,"",RANK(AI67,Top:Bottom,1)) -> 
AF68: =IF(AD68="","",AE68-AD68) ->  | AG68: =IF(AF68="","",ABS(AF68-BogeyTime)) ->  | AH68: =IF(COUNTIF(B68:AC68,"e")>0,"E",(IF(AD68="","",SUM(B68:AC68)))) ->  | AI68: =IF(OR(AD68="",AH68="E"),99999,(IF(AF68<BogeyTime,AG68*86401,AG68*86400)+AH68*100)) -> 99999 | AJ68: =IF(AI68=99999,"",RANK(AI68,Top:Bottom,1)) -> 
AI69: 99999 | AJ69: =IF(AI69=99999,"",RANK(AI69,Top:Bottom,1)) -> 
AI70: 99999 | AJ70: =IF(AI70=99999,"",RANK(AI70,Top:Bottom,1)) -> 
AI71: 99999 | AJ71: =IF(AI71=99999,"",RANK(AI71,Top:Bottom,1)) -> 
AI72: 99999 | AJ72: =IF(AI72=99999,"",RANK(AI72,Top:Bottom,1)) -> 
AI73: 99999 | AJ73: =IF(AI73=99999,"",RANK(AI73,Top:Bottom,1)) -> 
AI74: 99999 | AJ74: =IF(AI74=99999,"",RANK(AI74,Top:Bottom,1)) -> 
AI75: 99999 | AJ75: =IF(AI75=99999,"",RANK(AI75,Top:Bottom,1)) -> 
AI76: 99999 | AJ76: =IF(AI76=99999,"",RANK(AI76,Top:Bottom,1)) -> 
AI77: 99999 | AJ77: =IF(AI77=99999,"",RANK(AI77,Top:Bottom,1)) -> 
AI78: 99999 | AJ78: =IF(AI78=99999,"",RANK(AI78,Top:Bottom,1)) -> 
AI79: 99999 | AJ79: =IF(AI79=99999,"",RANK(AI79,Top:Bottom,1)) -> 
AI80: 99999 | AJ80: =IF(AI80=99999,"",RANK(AI80,Top:Bottom,1)) -> 
AI81: 99999 | AJ81: =IF(AI81=99999,"",RANK(AI81,Top:Bottom,1)) -> 
AI82: 99999 | AJ82: =IF(AI82=99999,"",RANK(AI82,Top:Bottom,1)) -> 
AI83: 99999 | AJ83: =IF(AI83=99999,"",RANK(AI83,Top:Bottom,1)) -> 
AI84: 99999 | AJ84: =IF(AI84=99999,"",RANK(AI84,Top:Bottom,1)) -> 
AI85: 99999 | AJ85: =IF(AI85=99999,"",RANK(AI85,Top:Bottom,1)) -> 
AI86: 99999 | AJ86: =IF(AI86=99999,"",RANK(AI86,Top:Bottom,1)) -> 
AI87: 99999 | AJ87: =IF(AI87=99999,"",RANK(AI87,Top:Bottom,1)) -> 
AI88: 99999 | AJ88: =IF(AI88=99999,"",RANK(AI88,Top:Bottom,1)) -> 
AI89: 99999 | AJ89: =IF(AI89=99999,"",RANK(AI89,Top:Bottom,1)) -> 
AI90: 99999 | AJ90: =IF(AI90=99999,"",RANK(AI90,Top:Bottom,1)) -> 
AI91: 99999 | AJ91: =IF(AI91=99999,"",RANK(AI91,Top:Bottom,1)) -> 
AI92: 99999 | AJ92: =IF(AI92=99999,"",RANK(AI92,Top:Bottom,1)) -> 
AI93: 99999 | AJ93: =IF(AI93=99999,"",RANK(AI93,Top:Bottom,1)) -> 
AI94: 99999 | AJ94: =IF(AI94=99999,"",RANK(AI94,Top:Bottom,1)) -> 
AI95: 99999 | AJ95: =IF(AI95=99999,"",RANK(AI95,Top:Bottom,1)) -> 
AI96: 99999 | AJ96: =IF(AI96=99999,"",RANK(AI96,Top:Bottom,1)) -> 
AI97: 99999 | AJ97: =IF(AI97=99999,"",RANK(AI97,Top:Bottom,1)) -> 
AI98: 99999 | AJ98: =IF(AI98=99999,"",RANK(AI98,Top:Bottom,1)) -> 
AI99: 99999 | AJ99: =IF(AI99=99999,"",RANK(AI99,Top:Bottom,1)) -> 
AF100: =IF(AD100="","",AE100-AD100) ->  | AG100: =IF(AF100="","",ABS(AF100-BogeyTime)) ->  | AI100: =IF(OR(AD100="",AH100="E"),99999,(IF(AF100<BogeyTime,AG100*86401,AG100*86400)+AH100*100)) -> 99999 | AJ100: =IF(AI100=99999,"",RANK(AI100,Top:Bottom,1)) -> 
AF101: =IF(AD101="","",AE101-AD101) ->  | AG101: =IF(AF101="","",ABS(AF101-BogeyTime)) ->  | AI101: =IF(OR(AD101="",AH101="E"),99999,(IF(AF101<BogeyTime,AG101*86401,AG101*86400)+AH101*100)) -> 99999 | AJ101: =IF(AI101=99999,"",RANK(AI101,Top:Bottom,1)) -> 
AF102: =IF(AD102="","",AE102-AD102) ->  | AG102: =IF(AF102="","",ABS(AF102-BogeyTime)) ->  | AI102: =IF(OR(AD102="",AH102="E"),99999,(IF(AF102<BogeyTime,AG102*86401,AG102*86400)+AH102*100)) -> 99999 | AJ102: =IF(AI102=99999,"",RANK(AI102,Top:Bottom,1)) -> 
A103: PJLH 15/03

Sheet Class 4
A1: Hunter Trials Scoresheet | K1: Date: | M1: 26/07/15 | P1: Class: | R1: 4 | S1: Height Cm: | V1: 90 | X1: Speed Mpm | AA1: =(IF(Height=80,435,IF(Height=90,450,IF(Height=100,475,250)))) -> 450 | AB1: Timed Dist (mtr) | AC1: 600 | AD1: T/S Optimum: | AG1: =TIME(INT((Distance*60/Speed)/3600),INT(MOD((Distance*60/Speed),3600)/60),MOD(MOD((Distance*60/Speed),3600),60)) -> 00:01:20
A2: No. | B2: 1 | C2: 2 | D2: 3 | E2: 4 | F2: 5 | G2: 6 | H2: 7 | I2: 8 | J2: 9 | K2: 10 | L2: 11 | M2: 12 | N2: 13 | O2: 14 | P2: 15 | Q2: 16 | R2: 17 | S2: 18 | T2: 19 | U2: 20 | AA2: Timed Section | AE2: Jump Total | AF2: Total Penalties | AG2: Position
AA3: Start | AB3: End | AC3: Elapsed | AD3: Variance
A4: 456 | B4: 0 | C4: 0 | D4: 0 | E4: e | F4: 0 | G4: 0 | H4: e | O4: 0 | P4: 0 | Q4: 0 | R4: 0 | S4: 0 | T4: 0 | U4: 0 | AA4: 0 | AB4: 00:01:58 | AC4: =IF(AA4="","",AB4-AA4) -> 00:01:58 | AD4: =IF(AC4="","",ABS(AC4-BogeyTime)) -> 0.0004398148148 | AE4: =IF(COUNTIF(B4:Z4,"e")>0,"E",(IF(AA4="","",SUM(B4:Z4)))) -> E | AF4: =IF(OR(AA4="",AE4="E"),99999,(IF(AC4<BogeyTime,AD4*86401,AD4*86400)+AE4*100)) -> 99999 | AG4: =IF(AF4=99999,"",RANK(AF4,Top:Bottom,1)) -> 
A5: 455 | B5: 0 | C5: 0 | D5: 0 | E5: 20 | F5: 20 | G5: e | H5: 0 | O5: 0 | P5: 0 | Q5: 0 | R5: 0 | S5: 0 | T5: 0 | U5: 0 | AA5: 0 | AB5: 00:01:43 | AC5: 00:01:43 | AD5: 0.0002662037037 | AE5: E | AF5: 99999 | AG5: =IF(AF5=99999,"",RANK(AF5,Top:Bottom,1)) -> 
A6: 444 | B6: 0 | C6: 0 | D6: 60 | E6: e | F6: 0 | G6: 0 | H6: 0 | O6: 0 | P6: 0 | Q6: 0 | R6: 0 | S6: 0 | T6: 0 | U6: 0 | AA6: 0 | AB6: 00:02:10 | AC6: 00:02:10 | AD6: 0.0005787037037 | AE6: E | AF6: 99999 | AG6: =IF(AF6=99999,"",RANK(AF6,Top:Bottom,1)) -> 
A7: 457 | B7: 0 | C7: 0 | D7: 0 | E7: e | F7: 0 | G7: 0 | H7: e | O7: 0 | P7: 0 | Q7: 0 | R7: 0 | S7: 0 | T7: 0 | U7: 0 | AA7: 00:00:00 | AC7: 00:00:00 | AD7: 0.0009259259259 | AE7: E | AF7: 99999 | AG7: =IF(AF7=99999,"",RANK(AF7,Top:Bottom,1)) -> 
A8: 454 | B8: 0 | C8: 0 | D8: 0 | E8: 75 | F8: 0 | G8: 0 | H8: 0 | O8: 0 | P8: 0 | Q8: 0 | R8: 0 | S8: 0 | T8: 0 | U8: 0 | AA8: 00:00:00 | AB8: 00:01:30 | AC8: 00:01:30 | AD8: 0.0001157407407 | AE8: 75 | AF8: 7510 | AG8: =IF(AF8=99999,"",RANK(AF8,Top:Bottom,1)) -> 5
A9: 448 | B9: 0 | C9: 0 | D9: 0 | E9: 15 | F9: 0 | G9: 0 | H9: 0 | O9: 0 | P9: 0 | Q9: 0 | R9: 0 | S9: 0 | T9: 0 | U9: 0 | AA9: 00:00:00 | AB9: 00:01:50 | AC9: 00:01:50 | AD9: 0.0003472222222 | AE9: 15 | AF9: 1530 | AG9: =IF(AF9=99999,"",RANK(AF9,Top:Bottom,1)) -> 3
A10: 447 | B10: 0 | C10: 0 | D10: 0 | E10: e | F10: 0 | G10: 60 | H10: e | O10: 0 | P10: 0 | Q10: e | R10: 0 | S10: 0 | T10: 0 | U10: 0 | AA10: 00:00:00 | AC10: 00:00:00 | AD10: 0.0009259259259 | AE10: E | AF10: 99999 | AG10: =IF(AF10=99999,"",RANK(AF10,Top:Bottom,1)) -> 
A11: 445 | B11: 0 | C11: 0 | D11: 0 | E11: 0 | F11: 0 | G11: 0 | H11: 0 | O11: 0 | P11: 0 | Q11: 0 | R11: 0 | S11: 0 | T11: 0 | U11: 0 | AA11: 00:00:00 | AB11: 00:01:24 | AC11: 00:01:24 | AD11: 4.62962963e-05 | AE11: 0 | AF11: 4 | AG11: =IF(AF11=99999,"",RANK(AF11,Top:Bottom,1)) -> 1
A12: 453 | B12: 0 | C12: 0 | D12: 0 | E12: 0 | F12: 0 | G12: 0 | H12: 0 | O12: 0 | P12: 0 | Q12: 0 | R12: 0 | S12: 0 | T12: 0 | U12: 0 | AA12: 00:00:00 | AB12: 00:01:28 | AC12: 00:01:28 | AD12: 9.259259259e-05 | AE12: 0 | AF12: 8 | AG12: =IF(AF12=99999,"",RANK(AF12,Top:Bottom,1)) -> 2
A13: 450 | B13: 0 | C13: 0 | D13: 20 | E13: 0 | F13: 0 | G13: 0 | H13: 0 | O13: 0 | P13: 0 | Q13: 0 | R13: 0 | S13: 0 | T13: 0 | U13: 0 | AA13: 00:00:00 | AB13: 00:01:44 | AC13: 00:01:44 | AD13: 0.0002777777778 | AE13: 20 | AF13: 2024 | AG13: =IF(AF13=99999,"",RANK(AF13,Top:Bottom,1)) -> 4
AC61: =IF(AA61="","",AB61-AA61) ->  | AD61: =IF(AC61="","",ABS(AC61-BogeyTime)) ->  | AE61: =IF(COUNTIF(B61:Z61,"e")>0,"E",(IF(AA61="","",SUM(B61:Z61)))) ->  | AF61: =IF(OR(AA61="",AE61="E"),99999,(IF(AC61<BogeyTime,AD61*86401,AD61*86400)+AE61*100)) -> 99999 | AG61: =IF(AF61=99999,"",RANK(AF61,Top:Bottom,1)) -> 
AF62: 99999 | AG62: =IF(AF62=99999,"",RANK(AF62,Top:Bottom,1)) -> 
AF63: 99999 | AG63: =IF(AF63=99999,"",RANK(AF63,Top:Bottom,1)) -> 
AF64: 99999 | AG64: =IF(AF64=99999,"",RANK(AF64,Top:Bottom,1)) -> 
AF65: 99999 | AG65: =IF(AF65=99999,"",RANK(AF65,Top:Bottom,1)) -> 
AF66: 99999 | AG66: =IF(AF66=99999,"",RANK(AF66,Top:Bottom,1)) -> 
AF67: 99999 | AG67: =IF(AF67=99999,"",RANK(AF67,Top:Bottom,1)) -> 
AC68: =IF(AA68="","",AB68-AA68) ->  | AD68: =IF(AC68="","",ABS(AC68-BogeyTime)) ->  | AE68: =IF(COUNTIF(B68:Z68,"e")>0,"E",(IF(AA68="","",SUM(B68:Z68)))) ->  | AF68: =IF(OR(AA68="",AE68="E"),99999,(IF(AC68<BogeyTime,AD68*86401,AD68*86400)+AE68*100)) -> 99999 | AG68: =IF(AF68=99999,"",RANK(AF68,Top:Bottom,1)) -> 
AF69: 99999 | AG69: =IF(AF69=99999,"",RANK(AF69,Top:Bottom,1)) -> 
AF70: 99999 | AG70: =IF(AF70=99999,"",RANK(AF70,Top:Bottom,1)) -> 
AF71: 99999 | AG71: =IF(AF71=99999,"",RANK(AF71,Top:Bottom,1)) -> 
AF72: 99999 | AG72: =IF(AF72=99999,"",RANK(AF72,Top:Bottom,1)) -> 
AF73: 99999 | AG73: =IF(AF73=99999,"",RANK(AF73,Top:Bottom,1)) -> 
AF74: 99999 | AG74: =IF(AF74=99999,"",RANK(AF74,Top:Bottom,1)) -> 
AF75: 99999 | AG75: =IF(AF75=99999,"",RANK(AF75,Top:Bottom,1)) -> 
AF76: 99999 | AG76: =IF(AF76=99999,"",RANK(AF76,Top:Bottom,1)) -> 
AF77: 99999 | AG77: =IF(AF77=99999,"",RANK(AF77,Top:Bottom,1)) -> 
AF78: 99999 | AG78: =IF(AF78=99999,"",RANK(AF78,Top:Bottom,1)) -> 
AF79: 99999 | AG79: =IF(AF79=99999,"",RANK(AF79,Top:Bottom,1)) -> 
AF80: 99999 | AG80: =IF(AF80=99999,"",RANK(AF80,Top:Bottom,1)) -> 
AF81: 99999 | AG81: =IF(AF81=99999,"",RANK(AF81,Top:Bottom,1)) -> 
AF82: 99999 | AG82: =IF(AF82=99999,"",RANK(AF82,Top:Bottom,1)) -> 
AF83: 99999 | AG83: =IF(AF83=99999,"",RANK(AF83,Top:Bottom,1)) -> 
AF84: 99999 | AG84: =IF(AF84=99999,"",RANK(AF84,Top:Bottom,1)) -> 
AF85: 99999 | AG85: =IF(AF85=99999,"",RANK(AF85,Top:Bottom,1)) -> 
AF86: 99999 | AG86: =IF(AF86=99999,"",RANK(AF86,Top:Bottom,1)) -> 
AF87: 99999 | AG87: =IF(AF87=99999,"",RANK(AF87,Top:Bottom,1)) -> 
AF88: 99999 | AG88: =IF(AF88=99999,"",RANK(AF88,Top:Bottom,1)) -> 
AF89: 99999 | AG89: =IF(AF89=99999,"",RANK(AF89,Top:Bottom,1)) -> 
AF90: 99999 | AG90: =IF(AF90=99999,"",RANK(AF90,Top:Bottom,1)) -> 
AF91: 99999 | AG91: =IF(AF91=99999,"",RANK(AF91,Top:Bottom,1)) -> 
AF92: 99999 | AG92: =IF(AF92=99999,"",RANK(AF92,Top:Bottom,1)) -> 
AF93: 99999 | AG93: =IF(AF93=99999,"",RANK(AF93,Top:Bottom,1)) -> 
AF94: 99999 | AG94: =IF(AF94=99999,"",RANK(AF94,Top:Bottom,1)) -> 
AF95: 99999 | AG95: =IF(AF95=99999,"",RANK(AF95,Top:Bottom,1)) -> 
AF96: 99999 | AG96: =IF(AF96=99999,"",RANK(AF96,Top:Bottom,1)) -> 
AF97: 99999 | AG97: =IF(AF97=99999,"",RANK(AF97,Top:Bottom,1)) -> 
AF98: 99999 | AG98: =IF(AF98=99999,"",RANK(AF98,Top:Bottom,1)) -> 
AF99: 99999 | AG99: =IF(AF99=99999,"",RANK(AF99,Top:Bottom,1)) -> 
AC100: =IF(AA100="","",AB100-AA100) ->  | AD100: =IF(AC100="","",ABS(AC100-BogeyTime)) ->  | AF100: =IF(OR(AA100="",AE100="E"),99999,(IF(AC100<BogeyTime,AD100*86401,AD100*86400)+AE100*100)) -> 99999 | AG100: =IF(AF100=99999,"",RANK(AF100,Top:Bottom,1)) -> 
AC101: =IF(AA101="","",AB101-AA101) ->  | AD101: =IF(AC101="","",ABS(AC101-BogeyTime)) ->  | AF101: =IF(OR(AA101="",AE101="E"),99999,(IF(AC101<BogeyTime,AD101*86401,AD101*86400)+AE101*100)) -> 99999 | AG101: =IF(AF101=99999,"",RANK(AF101,Top:Bottom,1)) -> 
AC102: =IF(AA102="","",AB102-AA102) ->  | AD102: =IF(AC102="","",ABS(AC102-BogeyTime)) ->  | AF102: =IF(OR(AA102="",AE102="E"),99999,(IF(AC102<BogeyTime,AD102*86401,AD102*86400)+AE102*100)) -> 99999 | AG102: =IF(AF102=99999,"",RANK(AF102,Top:Bottom,1)) -> 
A103: PJLH 15/03

Sheet Class 5
A1: Hunter Trials Scoresheet | K1: Date: | M1: 26/07/15 | P1: Class: | R1: 5 | S1: Height Cm: | V1: 90 | X1: Speed Mpm | AA1: =(IF(Height=80,435,IF(Height=90,450,IF(Height=100,475,250)))) -> 450 | AB1: Timed Dist (mtr) | AC1: 600 | AD1: T/S Optimum: | AG1: =TIME(INT((Distance*60/Speed)/3600),INT(MOD((Distance*60/Speed),3600)/60),MOD(MOD((Distance*60/Speed),3600),60)) -> 00:01:20
A2: No. | B2: 1 | C2: 2 | D2: 3 | E2: 4 | F2: 5 | G2: 6 | H2: 7 | I2: 8 | J2: 9 | K2: 10 | L2: 11 | M2: 12 | N2: 13 | O2: 14 | P2: 15 | Q2: 16 | R2: 17 | T2: Pairs F3 | U2: Pairs F16 | AA2: Timed Section | AE2: Jump Total | AF2: Total Penalties | AG2: Position
AA3: Start | AB3: End | AC3: Elapsed | AD3: Variance
AA4: 0 | AC4: =IF(AA4="","",AB4-AA4) -> 00:00:00 | AD4: =IF(AC4="","",ABS(AC4-BogeyTime)) -> 0.0009259259259 | AE4: =IF(COUNTIF(B4:Z4,"e")>0,"E",(IF(AA4="","",SUM(B4:Z4)))) -> 0 | AF4: =IF(OR(AA4="",AE4="E"),99999,(IF(AC4<BogeyTime,AD4*86401,AD4*86400)+AE4*100)) -> 80.00092593 | AG4: =IF(AF4=99999,"",RANK(AF4,Top:Bottom,1)) -> 1
AF5: 99999 | AG5: =IF(AF5=99999,"",RANK(AF5,Top:Bottom,1)) -> 
AF6: 99999 | AG6: =IF(AF6=99999,"",RANK(AF6,Top:Bottom,1)) -> 
AF7: 99999 | AG7: =IF(AF7=99999,"",RANK(AF7,Top:Bottom,1)) -> 
AF8: 99999 | AG8: =IF(AF8=99999,"",RANK(AF8,Top:Bottom,1)) -> 
AF9: 99999 | AG9: =IF(AF9=99999,"",RANK(AF9,Top:Bottom,1)) -> 
AF10: 99999 | AG10: =IF(AF10=99999,"",RANK(AF10,Top:Bottom,1)) -> 
AF11: 99999 | AG11: =IF(AF11=99999,"",RANK(AF11,Top:Bottom,1)) -> 
AF12: 99999 | AG12: =IF(AF12=99999,"",RANK(AF12,Top:Bottom,1)) -> 
AF13: 99999 | AG13: =IF(AF13=99999,"",RANK(AF13,Top:Bottom,1)) -> 
AF14: 99999 | AG14: =IF(AF14=99999,"",RANK(AF14,Top:Bottom,1)) -> 
AF15: 99999 | AG15: =IF(AF15=99999,"",RANK(AF15,Top:Bottom,1)) -> 
AF16: 99999 | AG16: =IF(AF16=99999,"",RANK(AF16,Top:Bottom,1)) -> 
AF17: 99999 | AG17: =IF(AF17=99999,"",RANK(AF17,Top:Bottom,1)) -> 
AF18: 99999 | AG18: =IF(AF18=99999,"",RANK(AF18,Top:Bottom,1)) -> 
AF19: 99999 | AG19: =IF(AF19=99999,"",RANK(AF19,Top:Bottom,1)) -> 
AF20: 99999 | AG20: =IF(AF20=99999,"",RANK(AF20,Top:Bottom,1)) -> 
AF21: 99999 | AG21: =IF(AF21=99999,"",RANK(AF21,Top:Bottom,1)) -> 
AF22: 99999 | AG22: =IF(AF22=99999,"",RANK(AF22,Top:Bottom,1)) -> 
AF23: 99999 | AG23: =IF(AF23=99999,"",RANK(AF23,Top:Bottom,1)) -> 
AF24: 99999 | AG24: =IF(AF24=99999,"",RANK(AF24,Top:Bottom,1)) -> 
AF25: 99999 | AG25: =IF(AF25=99999,"",RANK(AF25,Top:Bottom,1)) -> 
AF26: 99999 | AG26: =IF(AF26=99999,"",RANK(AF26,Top:Bottom,1)) -> 
AF27: 99999 | AG27: =IF(AF27=99999,"",RANK(AF27,Top:Bottom,1)) -> 
AF28: 99999 | AG28: =IF(AF28=99999,"",RANK(AF28,Top:Bottom,1)) -> 
AF29: 99999 | AG29: =IF(AF29=99999,"",RANK(AF29,Top:Bottom,1)) -> 
AF30: 99999 | AG30: =IF(AF30=99999,"",RANK(AF30,Top:Bottom,1)) -> 
AF31: 99999 | AG31: =IF(AF31=99999,"",RANK(AF31,Top:Bottom,1)) -> 
AF32: 99999 | AG32: =IF(AF32=99999,"",RANK(AF32,Top:Bottom,1)) -> 
AF33: 99999 | AG33: =IF(AF33=99999,"",RANK(AF33,Top:Bottom,1)) -> 
AF34: 99999 | AG34: =IF(AF34=99999,"",RANK(AF34,Top:Bottom,1)) -> 
AF35: 99999 | AG35: =IF(AF35=99999,"",RANK(AF35,Top:Bottom,1)) -> 
AC36: =IF(AA36="","",AB36-AA36) ->  | AD36: =IF(AC36="","",ABS(AC36-BogeyTime)) ->  | AE36: =IF(COUNTIF(B36:Z36,"e")>0,"E",(IF(AA36="","",SUM(B36:Z36)))) ->  | AF36: =IF(OR(AA36="",AE36="E"),99999,(IF(AC36<BogeyTime,AD36*86401,AD36*86400)+AE36*100)) -> 99999 | AG36: =IF(AF36=99999,"",RANK(AF36,Top:Bottom,1)) -> 
AF37: 99999 | AG37: =IF(AF37=99999,"",RANK(AF37,Top:Bottom,1)) -> 
AF38: 99999 | AG38: =IF(AF38=99999,"",RANK(AF38,Top:Bottom,1)) -> 
AF39: 99999 | AG39: =IF(AF39=99999,"",RANK(AF39,Top:Bottom,1)) -> 
AF40: 99999 | AG40: =IF(AF40=99999,"",RANK(AF40,Top:Bottom,1)) -> 
AF41: 99999 | AG41: =IF(AF41=99999,"",RANK(AF41,Top:Bottom,1)) -> 
AF42: 99999 | AG42: =IF(AF42=99999,"",RANK(AF42,Top:Bottom,1)) -> 
AF43: 99999 | AG43: =IF(AF43=99999,"",RANK(AF43,Top:Bottom,1)) -> 
AF44: 99999 | AG44: =IF(AF44=99999,"",RANK(AF44,Top:Bottom,1)) -> 
AF45: 99999 | AG45: =IF(AF45=99999,"",RANK(AF45,Top:Bottom,1)) -> 
AF46: 99999 | AG46: =IF(AF46=99999,"",RANK(AF46,Top:Bottom,1)) -> 
AF47: 99999 | AG47: =IF(AF47=99999,"",RANK(AF47,Top:Bottom,1)) -> 
AF48: 99999 | AG48: =IF(AF48=99999,"",RANK(AF48,Top:Bottom,1)) -> 
AF49: 99999 | AG49: =IF(AF49=99999,"",RANK(AF49,Top:Bottom,1)) -> 
AF50: 99999 | AG50: =IF(AF50=99999,"",RANK(AF50,Top:Bottom,1)) -> 
AF51: 99999 | AG51: =IF(AF51=99999,"",RANK(AF51,Top:Bottom,1)) -> 
AF52: 99999 | AG52: =IF(AF52=99999,"",RANK(AF52,Top:Bottom,1)) -> 
AF53: 99999 | AG53: =IF(AF53=99999,"",RANK(AF53,Top:Bottom,1)) -> 
AF54: 99999 | AG54: =IF(AF54=99999,"",RANK(AF54,Top:Bottom,1)) -> 
AF55: 99999 | AG55: =IF(AF55=99999,"",RANK(AF55,Top:Bottom,1)) -> 
AF56: 99999 | AG56: =IF(AF56=99999,"",RANK(AF56,Top:Bottom,1)) -> 
AF57: 99999 | AG57: =IF(AF57=99999,"",RANK(AF57,Top:Bottom,1)) -> 
AF58: 99999 | AG58: =IF(AF58=99999,"",RANK(AF58,Top:Bottom,1)) -> 
AF59: 99999 | AG59: =IF(AF59=99999,"",RANK(AF59,Top:Bottom,1)) -> 
AF60: 99999 | AG60: =IF(AF60=99999,"",RANK(AF60,Top:Bottom,1)) -> 
AF61: 99999 | AG61: =IF(AF61=99999,"",RANK(AF61,Top:Bottom,1)) -> 
AF62: 99999 | AG62: =IF(AF62=99999,"",RANK(AF62,Top:Bottom,1)) -> 
AF63: 99999 | AG63: =IF(AF63=99999,"",RANK(AF63,Top:Bottom,1)) -> 
AF64: 99999 | AG64: =IF(AF64=99999,"",RANK(AF64,Top:Bottom,1)) -> 
AF65: 99999 | AG65: =IF(AF65=99999,"",RANK(AF65,Top:Bottom,1)) -> 
AF66: 99999 | AG66: =IF(AF66=99999,"",RANK(AF66,Top:Bottom,1)) -> 
AF67: 99999 | AG67: =IF(AF67=99999,"",RANK(AF67,Top:Bottom,1)) -> 
AC68: =IF(AA68="","",AB68-AA68) ->  | AD68: =IF(AC68="","",ABS(AC68-BogeyTime)) ->  | AE68: =IF(COUNTIF(B68:Z68,"e")>0,"E",(IF(AA68="","",SUM(B68:Z68)))) ->  | AF68: =IF(OR(AA68="",AE68="E"),99999,(IF(AC68<BogeyTime,AD68*86401,AD68*86400)+AE68*100)) -> 99999 | AG68: =IF(AF68=99999,"",RANK(AF68,Top:Bottom,1)) -> 
AF69: 99999 | AG69: =IF(AF69=99999,"",RANK(AF69,Top:Bottom,1)) -> 
AF70: 99999 | AG70: =IF(AF70=99999,"",RANK(AF70,Top:Bottom,1)) -> 
AF71: 99999 | AG71: =IF(AF71=99999,"",RANK(AF71,Top:Bottom,1)) -> 
AF72: 99999 | AG72: =IF(AF72=99999,"",RANK(AF72,Top:Bottom,1)) -> 
AF73: 99999 | AG73: =IF(AF73=99999,"",RANK(AF73,Top:Bottom,1)) -> 
AF74: 99999 | AG74: =IF(AF74=99999,"",RANK(AF74,Top:Bottom,1)) -> 
AF75: 99999 | AG75: =IF(AF75=99999,"",RANK(AF75,Top:Bottom,1)) -> 
AF76: 99999 | AG76: =IF(AF76=99999,"",RANK(AF76,Top:Bottom,1)) -> 
AF77: 99999 | AG77: =IF(AF77=99999,"",RANK(AF77,Top:Bottom,1)) -> 
AF78: 99999 | AG78: =IF(AF78=99999,"",RANK(AF78,Top:Bottom,1)) -> 
AF79: 99999 | AG79: =IF(AF79=99999,"",RANK(AF79,Top:Bottom,1)) -> 
AF80: 99999 | AG80: =IF(AF80=99999,"",RANK(AF80,Top:Bottom,1)) -> 
AF81: 99999 | AG81: =IF(AF81=99999,"",RANK(AF81,Top:Bottom,1)) -> 
AF82: 99999 | AG82: =IF(AF82=99999,"",RANK(AF82,Top:Bottom,1)) -> 
AF83: 99999 | AG83: =IF(AF83=99999,"",RANK(AF83,Top:Bottom,1)) -> 
AF84: 99999 | AG84: =IF(AF84=99999,"",RANK(AF84,Top:Bottom,1)) -> 
AF85: 99999 | AG85: =IF(AF85=99999,"",RANK(AF85,Top:Bottom,1)) -> 
AF86: 99999 | AG86: =IF(AF86=99999,"",RANK(AF86,Top:Bottom,1)) -> 
AF87: 99999 | AG87: =IF(AF87=99999,"",RANK(AF87,Top:Bottom,1)) -> 
AF88: 99999 | AG88: =IF(AF88=99999,"",RANK(AF88,Top:Bottom,1)) -> 
AF89: 99999 | AG89: =IF(AF89=99999,"",RANK(AF89,Top:Bottom,1)) -> 
AF90: 99999 | AG90: =IF(AF90=99999,"",RANK(AF90,Top:Bottom,1)) -> 
AF91: 99999 | AG91: =IF(AF91=99999,"",RANK(AF91,Top:Bottom,1)) -> 
AF92: 99999 | AG92: =IF(AF92=99999,"",RANK(AF92,Top:Bottom,1)) -> 
AF93: 99999 | AG93: =IF(AF93=99999,"",RANK(AF93,Top:Bottom,1)) -> 
AF94: 99999 | AG94: =IF(AF94=99999,"",RANK(AF94,Top:Bottom,1)) -> 
AF95: 99999 | AG95: =IF(AF95=99999,"",RANK(AF95,Top:Bottom,1)) -> 
AF96: 99999 | AG96: =IF(AF96=99999,"",RANK(AF96,Top:Bottom,1)) -> 
AF97: 99999 | AG97: =IF(AF97=99999,"",RANK(AF97,Top:Bottom,1)) -> 
AF98: 99999 | AG98: =IF(AF98=99999,"",RANK(AF98,Top:Bottom,1)) -> 
AF99: 99999 | AG99: =IF(AF99=99999,"",RANK(AF99,Top:Bottom,1)) -> 
AC100: =IF(AA100="","",AB100-AA100) ->  | AD100: =IF(AC100="","",ABS(AC100-BogeyTime)) ->  | AF100: =IF(OR(AA100="",AE100="E"),99999,(IF(AC100<BogeyTime,AD100*86401,AD100*86400)+AE100*100)) -> 99999 | AG100: =IF(AF100=99999,"",RANK(AF100,Top:Bottom,1)) -> 
AC101: =IF(AA101="","",AB101-AA101) ->  | AD101: =IF(AC101="","",ABS(AC101-BogeyTime)) ->  | AF101: =IF(OR(AA101="",AE101="E"),99999,(IF(AC101<BogeyTime,AD101*86401,AD101*86400)+AE101*100)) -> 99999 | AG101: =IF(AF101=99999,"",RANK(AF101,Top:Bottom,1)) -> 
AC102: =IF(AA102="","",AB102-AA102) ->  | AD102: =IF(AC102="","",ABS(AC102-BogeyTime)) ->  | AF102: =IF(OR(AA102="",AE102="E"),99999,(IF(AC102<BogeyTime,AD102*86401,AD102*86400)+AE102*100)) -> 99999 | AG102: =IF(AF102=99999,"",RANK(AF102,Top:Bottom,1)) -> 
A103: PJLH 15/03

Sheet Class 6
A1: Hunter Trials Scoresheet | K1: Date: | M1: 26/07/15 | P1: Class: | R1: 6 | S1: Height Cm: | V1: 100 | X1: Speed Mpm | AA1: 437 | AB1: Timed Dist (mtr) | AC1: 515 | AD1: T/S Optimum: | AG1: =TIME(INT((Distance*60/Speed)/3600),INT(MOD((Distance*60/Speed),3600)/60),MOD(MOD((Distance*60/Speed),3600),60)) -> 00:01:10
A2: No. | B2: 1 | C2: 2 | D2: 3 | E2: 4 | F2: 5 | G2: 6 | H2: 7 | I2: 8 | J2: 9 | K2: 10 | L2: 11 | M2: 12 | N2: 13 | O2: 14 | P2: 15 | Q2: 16 | R2: 17 | S2: 18 | T2: 19 | U2: 20 | V2: 21 | AA2: Timed Section | AE2: Jump Total | AF2: Total Penalties | AG2: Position
AA3: Start | AB3: End | AC3: Elapsed | AD3: Variance
A4: 616 | B4: 0 | C4: 0 | D4: 20 | E4: 60 | F4: 0 | G4: 65 | H4: 0 | O4: 0 | P4: 0 | Q4: 0 | R4: 0 | S4: 0 | T4: 0 | U4: 0 | V4: 0 | AA4: 0 | AB4: 00:01:33 | AC4: =IF(AA4="","",AB4-AA4) -> 00:01:33 | AD4: =IF(AC4="","",ABS(AC4-BogeyTime)) -> 0.0002662037037 | AE4: =IF(COUNTIF(B4:Z4,"e")>0,"E",(IF(AA4="","",SUM(B4:Z4)))) -> 145 | AF4: =IF(OR(AA4="",AE4="E"),99999,(IF(AC4<BogeyTime,AD4*86401,AD4*86400)+AE4*100)) -> 14523 | AG4: =IF(AF4=99999,"",RANK(AF4,Top:Bottom,1)) -> 4
A5: 617 | B5: 0 | C5: 0 | D5: 0 | E5: 20 | F5: 0 | G5: 0 | H5: E | O5: 0 | P5: 0 | Q5: 0 | R5: 0 | S5: 0 | T5: 0 | U5: 0 | V5: 0 | AA5: 0 | AC5: 00:00:00 | AD5: 0.0008101851852 | AE5: E | AF5: 99999 | AG5: =IF(AF5=99999,"",RANK(AF5,Top:Bottom,1)) -> 
A6: 610 | B6: 0 | C6: 0 | D6: 0 | E6: 0 | F6: 0 | G6: 0 | H6: 0 | O6: 0 | P6: 0 | Q6: 0 | R6: 0 | S6: 0 | T6: 0 | U6: 0 | V6: 0 | AA6: 0 | AB6: 00:01:15 | AC6: 00:01:15 | AD6: 5.787037037e-05 | AE6: 0 | AF6: 5 | AG6: =IF(AF6=99999,"",RANK(AF6,Top:Bottom,1)) -> 1
A7: 614 | B7: 0 | C7: 0 | D7: 0 | E7: 0 | F7: 0 | G7: 0 | H7: 0 | O7: 0 | P7: 20 | Q7: 0 | R7: 0 | S7: 0 | T7: 0 | U7: 0 | V7: 0 | AA7: 00:00:00 | AB7: 00:01:14 | AC7: 00:01:14 | AD7: 4.62962963e-05 | AE7: 20 | AF7: 2004 | AG7: =IF(AF7=99999,"",RANK(AF7,Top:Bottom,1)) -> 3
A8: 615 | B8: 0 | C8: 0 | D8: 0 | E8: 0 | F8: 0 | G8: 0 | H8: 0 | O8: 0 | P8: 0 | Q8: 0 | R8: 0 | S8: 0 | T8: 0 | U8: 0 | V8: 0 | AA8: 00:00:00 | AB8: 00:01:20 | AC8: 00:01:20 | AD8: 0.0001157407407 | AE8: 0 | AF8: 10 | AG8: =IF(AF8=99999,"",RANK(AF8,Top:Bottom,1)) -> 2
AF9: 99999 | AG9: =IF(AF9=99999,"",RANK(AF9,Top:Bottom,1)) -> 
AF10: 99999 | AG10: =IF(AF10=99999,"",RANK(AF10,Top:Bottom,1)) -> 
AF11: 99999 | AG11: =IF(AF11=99999,"",RANK(AF11,Top:Bottom,1)) -> 
AF12: 99999 | AG12: =IF(AF12=99999,"",RANK(AF12,Top:Bottom,1)) -> 
AF13: 99999 | AG13: =IF(AF13=99999,"",RANK(AF13,Top:Bottom,1)) -> 
AF14: 99999 | AG14: =IF(AF14=99999,"",RANK(AF14,Top:Bottom,1)) -> 
AF15: 99999 | AG15: =IF(AF15=99999,"",RANK(AF15,Top:Bottom,1)) -> 
AF16: 99999 | AG16: =IF(AF16=99999,"",RANK(AF16,Top:Bottom,1)) -> 
AF17: 99999 | AG17: =IF(AF17=99999,"",RANK(AF17,Top:Bottom,1)) -> 
AF18: 99999 | AG18: =IF(AF18=99999,"",RANK(AF18,Top:Bottom,1)) -> 
AF19: 99999 | AG19: =IF(AF19=99999,"",RANK(AF19,Top:Bottom,1)) -> 
AF20: 99999 | AG20: =IF(AF20=99999,"",RANK(AF20,Top:Bottom,1)) -> 
AF21: 99999 | AG21: =IF(AF21=99999,"",RANK(AF21,Top:Bottom,1)) -> 
AF22: 99999 | AG22: =IF(AF22=99999,"",RANK(AF22,Top:Bottom,1)) -> 
AF23: 99999 | AG23: =IF(AF23=99999,"",RANK(AF23,Top:Bottom,1)) -> 
AF24: 99999 | AG24: =IF(AF24=99999,"",RANK(AF24,Top:Bottom,1)) -> 
AF25: 99999 | AG25: =IF(AF25=99999,"",RANK(AF25,Top:Bottom,1)) -> 
AF26: 99999 | AG26: =IF(AF26=99999,"",RANK(AF26,Top:Bottom,1)) -> 
AF27: 99999 | AG27: =IF(AF27=99999,"",RANK(AF27,Top:Bottom,1)) -> 
AF28: 99999 | AG28: =IF(AF28=99999,"",RANK(AF28,Top:Bottom,1)) -> 
AF29: 99999 | AG29: =IF(AF29=99999,"",RANK(AF29,Top:Bottom,1)) -> 
AF30: 99999 | AG30: =IF(AF30=99999,"",RANK(AF30,Top:Bottom,1)) -> 
AF31: 99999 | AG31: =IF(AF31=99999,"",RANK(AF31,Top:Bottom,1)) -> 
AF32: 99999 | AG32: =IF(AF32=99999,"",RANK(AF32,Top:Bottom,1)) -> 
AF33: 99999 | AG33: =IF(AF33=99999,"",RANK(AF33,Top:Bottom,1)) -> 
AF34: 99999 | AG34: =IF(AF34=99999,"",RANK(AF34,Top:Bottom,1)) -> 
AF35: 99999 | AG35: =IF(AF35=99999,"",RANK(AF35,Top:Bottom,1)) -> 
AC36: =IF(AA36="","",AB36-AA36) ->  | AD36: =IF(AC36="","",ABS(AC36-BogeyTime)) ->  | AE36: =IF(COUNTIF(B36:Z36,"e")>0,"E",(IF(AA36="","",SUM(B36:Z36)))) ->  | AF36: =IF(OR(AA36="",AE36="E"),99999,(IF(AC36<BogeyTime,AD36*86401,AD36*86400)+AE36*100)) -> 99999 | AG36: =IF(AF36=99999,"",RANK(AF36,Top:Bottom,1)) -> 
AF37: 99999 | AG37: =IF(AF37=99999,"",RANK(AF37,Top:Bottom,1)) -> 
AF38: 99999 | AG38: =IF(AF38=99999,"",RANK(AF38,Top:Bottom,1)) -> 
AF39: 99999 | AG39: =IF(AF39=99999,"",RANK(AF39,Top:Bottom,1)) -> 
AF40: 99999 | AG40: =IF(AF40=99999,"",RANK(AF40,Top:Bottom,1)) -> 
AF41: 99999 | AG41: =IF(AF41=99999,"",RANK(AF41,Top:Bottom,1)) -> 
AF42: 99999 | AG42: =IF(AF42=99999,"",RANK(AF42,Top:Bottom,1)) -> 
AF43: 99999 | AG43: =IF(AF43=99999,"",RANK(AF43,Top:Bottom,1)) -> 
AF44: 99999 | AG44: =IF(AF44=99999,"",RANK(AF44,Top:Bottom,1)) -> 
AF45: 99999 | AG45: =IF(AF45=99999,"",RANK(AF45,Top:Bottom,1)) -> 
AF46: 99999 | AG46: =IF(AF46=99999,"",RANK(AF46,Top:Bottom,1)) -> 
AF47: 99999 | AG47: =IF(AF47=99999,"",RANK(AF47,Top:Bottom,1)) -> 
AF48: 99999 | AG48: =IF(AF48=99999,"",RANK(AF48,Top:Bottom,1)) -> 
AF49: 99999 | AG49: =IF(AF49=99999,"",RANK(AF49,Top:Bottom,1)) -> 
AF50: 99999 | AG50: =IF(AF50=99999,"",RANK(AF50,Top:Bottom,1)) -> 
AF51: 99999 | AG51: =IF(AF51=99999,"",RANK(AF51,Top:Bottom,1)) -> 
AF52: 99999 | AG52: =IF(AF52=99999,"",RANK(AF52,Top:Bottom,1)) -> 
AF53: 99999 | AG53: =IF(AF53=99999,"",RANK(AF53,Top:Bottom,1)) -> 
AF54: 99999 | AG54: =IF(AF54=99999,"",RANK(AF54,Top:Bottom,1)) -> 
AF55: 99999 | AG55: =IF(AF55=99999,"",RANK(AF55,Top:Bottom,1)) -> 
AF56: 99999 | AG56: =IF(AF56=99999,"",RANK(AF56,Top:Bottom,1)) -> 
AF57: 99999 | AG57: =IF(AF57=99999,"",RANK(AF57,Top:Bottom,1)) -> 
AF58: 99999 | AG58: =IF(AF58=99999,"",RANK(AF58,Top:Bottom,1)) -> 
AF59: 99999 | AG59: =IF(AF59=99999,"",RANK(AF59,Top:Bottom,1)) -> 
AF60: 99999 | AG60: =IF(AF60=99999,"",RANK(AF60,Top:Bottom,1)) -> 
AF61: 99999 | AG61: =IF(AF61=99999,"",RANK(AF61,Top:Bottom,1)) -> 
AF62: 99999 | AG62: =IF(AF62=99999,"",RANK(AF62,Top:Bottom,1)) -> 
AF63: 99999 | AG63: =IF(AF63=99999,"",RANK(AF63,Top:Bottom,1)) -> 
AF64: 99999 | AG64: =IF(AF64=99999,"",RANK(AF64,Top:Bottom,1)) -> 
AF65: 99999 | AG65: =IF(AF65=99999,"",RANK(AF65,Top:Bottom,1)) -> 
AF66: 99999 | AG66: =IF(AF66=99999,"",RANK(AF66,Top:Bottom,1)) -> 
AF67: 99999 | AG67: =IF(AF67=99999,"",RANK(AF67,Top:Bottom,1)) -> 
AC68: =IF(AA68="","",AB68-AA68) ->  | AD68: =IF(AC68="","",ABS(AC68-BogeyTime)) ->  | AE68: =IF(COUNTIF(B68:Z68,"e")>0,"E",(IF(AA68="","",SUM(B68:Z68)))) ->  | AF68: =IF(OR(AA68="",AE68="E"),99999,(IF(AC68<BogeyTime,AD68*86401,AD68*86400)+AE68*100)) -> 99999 | AG68: =IF(AF68=99999,"",RANK(AF68,Top:Bottom,1)) -> 
AF69: 99999 | AG69: =IF(AF69=99999,"",RANK(AF69,Top:Bottom,1)) -> 
AF70: 99999 | AG70: =IF(AF70=99999,"",RANK(AF70,Top:Bottom,1)) -> 
AF71: 99999 | AG71: =IF(AF71=99999,"",RANK(AF71,Top:Bottom,1)) -> 
AF72: 99999 | AG72: =IF(AF72=99999,"",RANK(AF72,Top:Bottom,1)) -> 
AF73: 99999 | AG73: =IF(AF73=99999,"",RANK(AF73,Top:Bottom,1)) -> 
AF74: 99999 | AG74: =IF(AF74=99999,"",RANK(AF74,Top:Bottom,1)) -> 
AF75: 99999 | AG75: =IF(AF75=99999,"",RANK(AF75,Top:Bottom,1)) -> 
AF76: 99999 | AG76: =IF(AF76=99999,"",RANK(AF76,Top:Bottom,1)) -> 
AF77: 99999 | AG77: =IF(AF77=99999,"",RANK(AF77,Top:Bottom,1)) -> 
AF78: 99999 | AG78: =IF(AF78=99999,"",RANK(AF78,Top:Bottom,1)) -> 
AF79: 99999 | AG79: =IF(AF79=99999,"",RANK(AF79,Top:Bottom,1)) -> 
AF80: 99999 | AG80: =IF(AF80=99999,"",RANK(AF80,Top:Bottom,1)) -> 
AF81: 99999 | AG81: =IF(AF81=99999,"",RANK(AF81,Top:Bottom,1)) -> 
AF82: 99999 | AG82: =IF(AF82=99999,"",RANK(AF82,Top:Bottom,1)) -> 
AF83: 99999 | AG83: =IF(AF83=99999,"",RANK(AF83,Top:Bottom,1)) -> 
AF84: 99999 | AG84: =IF(AF84=99999,"",RANK(AF84,Top:Bottom,1)) -> 
AF85: 99999 | AG85: =IF(AF85=99999,"",RANK(AF85,Top:Bottom,1)) -> 
AF86: 99999 | AG86: =IF(AF86=99999,"",RANK(AF86,Top:Bottom,1)) -> 
AF87: 99999 | AG87: =IF(AF87=99999,"",RANK(AF87,Top:Bottom,1)) -> 
AF88: 99999 | AG88: =IF(AF88=99999,"",RANK(AF88,Top:Bottom,1)) -> 
AF89: 99999 | AG89: =IF(AF89=99999,"",RANK(AF89,Top:Bottom,1)) -> 
AF90: 99999 | AG90: =IF(AF90=99999,"",RANK(AF90,Top:Bottom,1)) -> 
AF91: 99999 | AG91: =IF(AF91=99999,"",RANK(AF91,Top:Bottom,1)) -> 
AF92: 99999 | AG92: =IF(AF92=99999,"",RANK(AF92,Top:Bottom,1)) -> 
AF93: 99999 | AG93: =IF(AF93=99999,"",RANK(AF93,Top:Bottom,1)) -> 
AF94: 99999 | AG94: =IF(AF94=99999,"",RANK(AF94,Top:Bottom,1)) -> 
AF95: 99999 | AG95: =IF(AF95=99999,"",RANK(AF95,Top:Bottom,1)) -> 
AF96: 99999 | AG96: =IF(AF96=99999,"",RANK(AF96,Top:Bottom,1)) -> 
AF97: 99999 | AG97: =IF(AF97=99999,"",RANK(AF97,Top:Bottom,1)) -> 
AF98: 99999 | AG98: =IF(AF98=99999,"",RANK(AF98,Top:Bottom,1)) -> 
AF99: 99999 | AG99: =IF(AF99=99999,"",RANK(AF99,Top:Bottom,1)) -> 
AC100: =IF(AA100="","",AB100-AA100) ->  | AD100: =IF(AC100="","",ABS(AC100-BogeyTime)) ->  | AF100: =IF(OR(AA100="",AE100="E"),99999,(IF(AC100<BogeyTime,AD100*86401,AD100*86400)+AE100*100)) -> 99999 | AG100: =IF(AF100=99999,"",RANK(AF100,Top:Bottom,1)) -> 
AC101: =IF(AA101="","",AB101-AA101) ->  | AD101: =IF(AC101="","",ABS(AC101-BogeyTime)) ->  | AF101: =IF(OR(AA101="",AE101="E"),99999,(IF(AC101<BogeyTime,AD101*86401,AD101*86400)+AE101*100)) -> 99999 | AG101: =IF(AF101=99999,"",RANK(AF101,Top:Bottom,1)) -> 
AC102: =IF(AA102="","",AB102-AA102) ->  | AD102: =IF(AC102="","",ABS(AC102-BogeyTime)) ->  | AF102: =IF(OR(AA102="",AE102="E"),99999,(IF(AC102<BogeyTime,AD102*86401,AD102*86400)+AE102*100)) -> 99999 | AG102: =IF(AF102=99999,"",RANK(AF102,Top:Bottom,1)) -> 
A103: PJLH 15/03

Sheet Test Sheet
A1: Hunter Trials Scoresheet | K1: Date: | P1: Class: | S1: Height Cm: | V1: Min | X1: Speed Mpm | AA1: =(IF(Height=80,435,IF(Height=90,450,IF(Height=100,475,250)))) -> 250 | AB1: Timed Dist (mtr) | AC1: 529 | AD1: T/S Optimum: | AG1: =TIME(INT((Distance*60/Speed)/3600),INT(MOD((Distance*60/Speed),3600)/60),MOD(MOD((Distance*60/Speed),3600),60)) -> 00:02:06
A2: No. | B2: 1 | C2: 2 | D2: 3 | E2: 4 | F2: 5 | G2: 6 | H2: 7 | I2: 8 | J2: 9 | K2: 10 | L2: 11 | M2: 12 | N2: 13 | O2: 14 | P2: 15 | Q2: 16 | R2: 17 | S2: 18 | T2: 19 | U2: 20 | V2: 21 | W2: 22 | X2: 23 | Y2: 24 | Z2: 25 | AA2: Timed Section | AE2: Jump Total | AF2: Total Penalties | AG2: Position
AA3: Start | AB3: End | AC3: Elapsed | AD3: Variance
B4: 0 | C4: 0 | D4: 0 | E4: 0 | F4: 0 | G4: 0 | H4: 0 | I4: 0 | J4: 0 | K4: 0 | L4: 0 | M4: 0 | N4: 0 | O4: 0 | P4: 0 | Q4: 20 | AA4: 0 | AB4: 00:02:10 | AC4: =IF(AA4="","",AB4-AA4) -> 00:02:10 | AD4: =IF(AC4="","",ABS(AC4-BogeyTime)) -> 4.62962963e-05 | AE4: =IF(COUNTIF(B4:Z4,"e")>0,"E",(IF(AA4="","",SUM(B4:Z4)))) -> 20 | AF4: =IF(OR(AA4="",AE4="E"),99999,(IF(AC4<BogeyTime,AD4*86401,AD4*86400)+AE4*100)) -> 2004 | AG4: =IF(AF4=99999,"",RANK(AF4,Top:Bottom,1)) -> 2
B5: 20 | C5: 20 | D5: 0 | E5: 0 | F5: 0 | G5: 0 | H5: 0 | I5: 0 | J5: 0 | K5: 0 | L5: 0 | M5: 0 | N5: 0 | O5: 0 | P5: 0 | Q5: 0 | AA5: 0 | AB5: 00:03:06 | AC5: 00:03:06 | AD5: 0.0006944444444 | AE5: 40 | AF5: 4060 | AG5: =IF(AF5=99999,"",RANK(AF5,Top:Bottom,1)) -> 3
B6: 0 | C6: 0 | D6: 0 | E6: 0 | F6: 0 | G6: 0 | H6: 0 | I6: E | AE6: E | AF6: 99999 | AG6: =IF(AF6=99999,"",RANK(AF6,Top:Bottom,1)) -> 
B7: 0 | C7: 0 | D7: 0 | E7: 0 | F7: 0 | G7: 0 | H7: 0 | I7: 0 | J7: 0 | K7: 0 | L7: 0 | M7: 0 | N7: 0 | O7: 0 | P7: 0 | Q7: 0 | AA7: 00:00:00 | AB7: 00:03:00 | AC7: 00:03:00 | AD7: 0.000625 | AE7: 0 | AF7: 54 | AG7: =IF(AF7=99999,"",RANK(AF7,Top:Bottom,1)) -> 1
AF8: 99999 | AG8: =IF(AF8=99999,"",RANK(AF8,Top:Bottom,1)) -> 
AF9: 99999 | AG9: =IF(AF9=99999,"",RANK(AF9,Top:Bottom,1)) -> 
AF10: 99999 | AG10: =IF(AF10=99999,"",RANK(AF10,Top:Bottom,1)) -> 
AF11: 99999 | AG11: =IF(AF11=99999,"",RANK(AF11,Top:Bottom,1)) -> 
AF12: 99999 | AG12: =IF(AF12=99999,"",RANK(AF12,Top:Bottom,1)) -> 
AF13: 99999 | AG13: =IF(AF13=99999,"",RANK(AF13,Top:Bottom,1)) -> 
AF14: 99999 | AG14: =IF(AF14=99999,"",RANK(AF14,Top:Bottom,1)) -> 
AF15: 99999 | AG15: =IF(AF15=99999,"",RANK(AF15,Top:Bottom,1)) -> 
AF16: 99999 | AG16: =IF(AF16=99999,"",RANK(AF16,Top:Bottom,1)) -> 
AF17: 99999 | AG17: =IF(AF17=99999,"",RANK(AF17,Top:Bottom,1)) -> 
AF18: 99999 | AG18: =IF(AF18=99999,"",RANK(AF18,Top:Bottom,1)) -> 
AF19: 99999 | AG19: =IF(AF19=99999,"",RANK(AF19,Top:Bottom,1)) -> 
AF20: 99999 | AG20: =IF(AF20=99999,"",RANK(AF20,Top:Bottom,1)) -> 
AF21: 99999 | AG21: =IF(AF21=99999,"",RANK(AF21,Top:Bottom,1)) -> 
AF22: 99999 | AG22: =IF(AF22=99999,"",RANK(AF22,Top:Bottom,1)) -> 
AF23: 99999 | AG23: =IF(AF23=99999,"",RANK(AF23,Top:Bottom,1)) -> 
AF24: 99999 | AG24: =IF(AF24=99999,"",RANK(AF24,Top:Bottom,1)) -> 
AF25: 99999 | AG25: =IF(AF25=99999,"",RANK(AF25,Top:Bottom,1)) -> 
AF26: 99999 | AG26: =IF(AF26=99999,"",RANK(AF26,Top:Bottom,1)) -> 
AF27: 99999 | AG27: =IF(AF27=99999,"",RANK(AF27,Top:Bottom,1)) -> 
AF28: 99999 | AG28: =IF(AF28=99999,"",RANK(AF28,Top:Bottom,1)) -> 
AF29: 99999 | AG29: =IF(AF29=99999,"",RANK(AF29,Top:Bottom,1)) -> 
AF30: 99999 | AG30: =IF(AF30=99999,"",RANK(AF30,Top:Bottom,1)) -> 
AF31: 99999 | AG31: =IF(AF31=99999,"",RANK(AF31,Top:Bottom,1)) -> 
AF32: 99999 | AG32: =IF(AF32=99999,"",RANK(AF32,Top:Bottom,1)) -> 
AF33: 99999 | AG33: =IF(AF33=99999,"",RANK(AF33,Top:Bottom,1)) -> 
AF34: 99999 | AG34: =IF(AF34=99999,"",RANK(AF34,Top:Bottom,1)) -> 
AF35: 99999 | AG35: =IF(AF35=99999,"",RANK(AF35,Top:Bottom,1)) -> 
AC36: =IF(AA36="","",AB36-AA36) ->  | AD36: =IF(AC36="","",ABS(AC36-BogeyTime)) ->  | AE36: =IF(COUNTIF(B36:Z36,"e")>0,"E",(IF(AA36="","",SUM(B36:Z36)))) ->  | AF36: =IF(OR(AA36="",AE36="E"),99999,(IF(AC36<BogeyTime,AD36*86401,AD36*86400)+AE36*100)) -> 99999 | AG36: =IF(AF36=99999,"",RANK(AF36,Top:Bottom,1)) -> 
AF37: 99999 | AG37: =IF(AF37=99999,"",RANK(AF37,Top:Bottom,1)) -> 
AF38: 99999 | AG38: =IF(AF38=99999,"",RANK(AF38,Top:Bottom,1)) -> 
AF39: 99999 | AG39: =IF(AF39=99999,"",RANK(AF39,Top:Bottom,1)) -> 
AF40: 99999 | AG40: =IF(AF40=99999,"",RANK(AF40,Top:Bottom,1)) -> 
AF41: 99999 | AG41: =IF(AF41=99999,"",RANK(AF41,Top:Bottom,1)) -> 
AF42: 99999 | AG42: =IF(AF42=99999,"",RANK(AF42,Top:Bottom,1)) -> 
AF43: 99999 | AG43: =IF(AF43=99999,"",RANK(AF43,Top:Bottom,1)) -> 
AF44: 99999 | AG44: =IF(AF44=99999,"",RANK(AF44,Top:Bottom,1)) -> 
AF45: 99999 | AG45: =IF(AF45=99999,"",RANK(AF45,Top:Bottom,1)) -> 
AF46: 99999 | AG46: =IF(AF46=99999,"",RANK(AF46,Top:Bottom,1)) -> 
AF47: 99999 | AG47: =IF(AF47=99999,"",RANK(AF47,Top:Bottom,1)) -> 
AF48: 99999 | AG48: =IF(AF48=99999,"",RANK(AF48,Top:Bottom,1)) -> 
AF49: 99999 | AG49: =IF(AF49=99999,"",RANK(AF49,Top:Bottom,1)) -> 
AF50: 99999 | AG50: =IF(AF50=99999,"",RANK(AF50,Top:Bottom,1)) -> 
AF51: 99999 | AG51: =IF(AF51=99999,"",RANK(AF51,Top:Bottom,1)) -> 
AF52: 99999 | AG52: =IF(AF52=99999,"",RANK(AF52,Top:Bottom,1)) -> 
AF53: 99999 | AG53: =IF(AF53=99999,"",RANK(AF53,Top:Bottom,1)) -> 
AF54: 99999 | AG54: =IF(AF54=99999,"",RANK(AF54,Top:Bottom,1)) -> 
AF55: 99999 | AG55: =IF(AF55=99999,"",RANK(AF55,Top:Bottom,1)) -> 
AF56: 99999 | AG56: =IF(AF56=99999,"",RANK(AF56,Top:Bottom,1)) -> 
AF57: 99999 | AG57: =IF(AF57=99999,"",RANK(AF57,Top:Bottom,1)) -> 
AF58: 99999 | AG58: =IF(AF58=99999,"",RANK(AF58,Top:Bottom,1)) -> 
AF59: 99999 | AG59: =IF(AF59=99999,"",RANK(AF59,Top:Bottom,1)) -> 
AF60: 99999 | AG60: =IF(AF60=99999,"",RANK(AF60,Top:Bottom,1)) -> 
AF61: 99999 | AG61: =IF(AF61=99999,"",RANK(AF61,Top:Bottom,1)) -> 
AF62: 99999 | AG62: =IF(AF62=99999,"",RANK(AF62,Top:Bottom,1)) -> 
AF63: 99999 | AG63: =IF(AF63=99999,"",RANK(AF63,Top:Bottom,1)) -> 
AF64: 99999 | AG64: =IF(AF64=99999,"",RANK(AF64,Top:Bottom,1)) -> 
AF65: 99999 | AG65: =IF(AF65=99999,"",RANK(AF65,Top:Bottom,1)) -> 
AF66: 99999 | AG66: =IF(AF66=99999,"",RANK(AF66,Top:Bottom,1)) -> 
AF67: 99999 | AG67: =IF(AF67=99999,"",RANK(AF67,Top:Bottom,1)) -> 
AC68: =IF(AA68="","",AB68-AA68) ->  | AD68: =IF(AC68="","",ABS(AC68-BogeyTime)) ->  | AE68: =IF(COUNTIF(B68:Z68,"e")>0,"E",(IF(AA68="","",SUM(B68:Z68)))) ->  | AF68: =IF(OR(AA68="",AE68="E"),99999,(IF(AC68<BogeyTime,AD68*86401,AD68*86400)+AE68*100)) -> 99999 | AG68: =IF(AF68=99999,"",RANK(AF68,Top:Bottom,1)) -> 
AF69: 99999 | AG69: =IF(AF69=99999,"",RANK(AF69,Top:Bottom,1)) -> 
AF70: 99999 | AG70: =IF(AF70=99999,"",RANK(AF70,Top:Bottom,1)) -> 
AF71: 99999 | AG71: =IF(AF71=99999,"",RANK(AF71,Top:Bottom,1)) -> 
AF72: 99999 | AG72: =IF(AF72=99999,"",RANK(AF72,Top:Bottom,1)) -> 
AF73: 99999 | AG73: =IF(AF73=99999,"",RANK(AF73,Top:Bottom,1)) -> 
AF74: 99999 | AG74: =IF(AF74=99999,"",RANK(AF74,Top:Bottom,1)) -> 
AF75: 99999 | AG75: =IF(AF75=99999,"",RANK(AF75,Top:Bottom,1)) -> 
AF76: 99999 | AG76: =IF(AF76=99999,"",RANK(AF76,Top:Bottom,1)) -> 
AF77: 99999 | AG77: =IF(AF77=99999,"",RANK(AF77,Top:Bottom,1)) -> 
AF78: 99999 | AG78: =IF(AF78=99999,"",RANK(AF78,Top:Bottom,1)) -> 
AF79: 99999 | AG79: =IF(AF79=99999,"",RANK(AF79,Top:Bottom,1)) -> 
AF80: 99999 | AG80: =IF(AF80=99999,"",RANK(AF80,Top:Bottom,1)) -> 
AF81: 99999 | AG81: =IF(AF81=99999,"",RANK(AF81,Top:Bottom,1)) -> 
AF82: 99999 | AG82: =IF(AF82=99999,"",RANK(AF82,Top:Bottom,1)) -> 
AF83: 99999 | AG83: =IF(AF83=99999,"",RANK(AF83,Top:Bottom,1)) -> 
AF84: 99999 | AG84: =IF(AF84=99999,"",RANK(AF84,Top:Bottom,1)) -> 
AF85: 99999 | AG85: =IF(AF85=99999,"",RANK(AF85,Top:Bottom,1)) -> 
AF86: 99999 | AG86: =IF(AF86=99999,"",RANK(AF86,Top:Bottom,1)) -> 
AF87: 99999 | AG87: =IF(AF87=99999,"",RANK(AF87,Top:Bottom,1)) -> 
AF88: 99999 | AG88: =IF(AF88=99999,"",RANK(AF88,Top:Bottom,1)) -> 
AF89: 99999 | AG89: =IF(AF89=99999,"",RANK(AF89,Top:Bottom,1)) -> 
AF90: 99999 | AG90: =IF(AF90=99999,"",RANK(AF90,Top:Bottom,1)) -> 
AF91: 99999 | AG91: =IF(AF91=99999,"",RANK(AF91,Top:Bottom,1)) -> 
AF92: 99999 | AG92: =IF(AF92=99999,"",RANK(AF92,Top:Bottom,1)) -> 
AF93: 99999 | AG93: =IF(AF93=99999,"",RANK(AF93,Top:Bottom,1)) -> 
AF94: 99999 | AG94: =IF(AF94=99999,"",RANK(AF94,Top:Bottom,1)) -> 
AF95: 99999 | AG95: =IF(AF95=99999,"",RANK(AF95,Top:Bottom,1)) -> 
AF96: 99999 | AG96: =IF(AF96=99999,"",RANK(AF96,Top:Bottom,1)) -> 
AF97: 99999 | AG97: =IF(AF97=99999,"",RANK(AF97,Top:Bottom,1)) -> 
AF98: 99999 | AG98: =IF(AF98=99999,"",RANK(AF98,Top:Bottom,1)) -> 
AF99: 99999 | AG99: =IF(AF99=99999,"",RANK(AF99,Top:Bottom,1)) -> 
AC100: =IF(AA100="","",AB100-AA100) ->  | AD100: =IF(AC100="","",ABS(AC100-BogeyTime)) ->  | AF100: =IF(OR(AA100="",AE100="E"),99999,(IF(AC100<BogeyTime,AD100*86401,AD100*86400)+AE100*100)) -> 99999 | AG100: =IF(AF100=99999,"",RANK(AF100,Top:Bottom,1)) -> 
AC101: =IF(AA101="","",AB101-AA101) ->  | AD101: =IF(AC101="","",ABS(AC101-BogeyTime)) ->  | AF101: =IF(OR(AA101="",AE101="E"),99999,(IF(AC101<BogeyTime,AD101*86401,AD101*86400)+AE101*100)) -> 99999 | AG101: =IF(AF101=99999,"",RANK(AF101,Top:Bottom,1)) -> 
AC102: =IF(AA102="","",AB102-AA102) ->  | AD102: =IF(AC102="","",ABS(AC102-BogeyTime)) ->  | AF102: =IF(OR(AA102="",AE102="E"),99999,(IF(AC102<BogeyTime,AD102*86401,AD102*86400)+AE102*100)) -> 99999 | AG102: =IF(AF102=99999,"",RANK(AF102,Top:Bottom,1)) -> 
A103: PJLH 15/03
